Workbook

Sheet Calendrier
B1: =MONTH(TODAY()) -> 1 | C1: =YEAR(TODAY()) -> 2022 | D1: =DATE(C1,1,1) -> 2022-01-01 | E1: =EOMONTH(D1,0) -> 2022-01-31 | F1: =WEEKDAY(D1,2) -> 6 | K1: =YEAR(TODAY()) -> 2022 | L1: =DATE(K1,2,1) -> 2022-02-01 | M1: =EOMONTH(L1,0) -> 2022-02-28 | N1: =WEEKDAY(L1,2) -> 2 | S1: =YEAR(TODAY()) -> 2022 | T1: =DATE(S1,3,1) -> 2022-03-01 | U1: =EOMONTH(T1,0) -> 2022-03-31 | V1: =WEEKDAY(T1,2) -> 2
B4: =PROPER(TEXT(DATE(,1,1),"mmmm"))&" "& C1 -> Janvier 2022 | J4: =PROPER(TEXT(DATE(,2,1),"mmmm"))&" "& K1 -> Février 2022 | R4: =PROPER(TEXT(DATE(,3,1),"mmmm"))&" "& S1 -> Mars 2022
B5: Lundi | C5: Mardi | D5: Mercredi | E5: Jeudi | F5: Vendredi | G5: Samedi | H5: Dimanche | J5: Lundi | K5: Mardi | L5: Mercredi | M5: Jeudi | N5: Vendredi | O5: Samedi | P5: Dimanche | R5: Lundi | S5: Mardi | T5: Mercredi | U5: Jeudi | V5: Vendredi | W5: Samedi | X5: Dimanche
B6: =D1-F1+1 -> 2021-12-27 | C6: =B6+1 -> 2021-12-28 | D6: =C6+1 -> 2021-12-29 | E6: 2021-12-30 | F6: 2021-12-31 | G6: 2022-01-01 | H6: 2022-01-02 | J6: =L1-N1+1 -> 2022-01-31 | K6: =J6+1 -> 2022-02-01 | L6: =K6+1 -> 2022-02-02 | M6: 2022-02-03 | N6: 2022-02-04 | O6: 2022-02-05 | P6: 2022-02-06 | R6: =T1-V1+1 -> 2022-02-28 | S6: =R6+1 -> 2022-03-01 | T6: =S6+1 -> 2022-03-02 | U6: 2022-03-03 | V6: 2022-03-04 | W6: 2022-03-05 | X6: 2022-03-06
B8: =B6+7 -> 2022-01-03 | C8: =B8+1 -> 2022-01-04 | D8: =C8+1 -> 2022-01-05 | E8: =D8+1 -> 2022-01-06 | F8: 2022-01-07 | G8: 2022-01-08 | H8: 2022-01-09 | J8: =J6+7 -> 2022-02-07 | K8: =J8+1 -> 2022-02-08 | L8: =K8+1 -> 2022-02-09 | M8: 2022-02-10 | N8: 2022-02-11 | O8: 2022-02-12 | P8: 2022-02-13 | R8: =R6+7 -> 2022-03-07 | S8: =R8+1 -> 2022-03-08 | T8: =S8+1 -> 2022-03-09 | U8: 2022-03-10 | V8: 2022-03-11 | W8: 2022-03-12 | X8: 2022-03-13
B10: =B8+7 -> 2022-01-10 | C10: =B10+1 -> 2022-01-11 | D10: 2022-01-12 | E10: 2022-01-13 | F10: 2022-01-14 | G10: 2022-01-15 | H10: 2022-01-16 | J10: =J8+7 -> 2022-02-14 | K10: =J10+1 -> 2022-02-15 | L10: =K10+1 -> 2022-02-16 | M10: 2022-02-17 | N10: 2022-02-18 | O10: 2022-02-19 | P10: 2022-02-20 | R10: =R8+7 -> 2022-03-14 | S10: =R10+1 -> 2022-03-15 | T10: =S10+1 -> 2022-03-16 | U10: 2022-03-17 | V10: 2022-03-18 | W10: 2022-03-19 | X10: 2022-03-20
B12: =B10+7 -> 2022-01-17 | C12: =B12+1 -> 2022-01-18 | D12: 2022-01-19 | E12: 2022-01-20 | F12: 2022-01-21 | G12: 2022-01-22 | H12: 2022-01-23 | J12: =J10+7 -> 2022-02-21 | K12: =J12+1 -> 2022-02-22 | L12: =K12+1 -> 2022-02-23 | M12: 2022-02-24 | N12: 2022-02-25 | O12: 2022-02-26 | P12: 2022-02-27 | R12: =R10+7 -> 2022-03-21 | S12: =R12+1 -> 2022-03-22 | T12: =S12+1 -> 2022-03-23 | U12: 2022-03-24 | V12: 2022-03-25 | W12: 2022-03-26 | X12: 2022-03-27
B14: =B12+7 -> 2022-01-24 | C14: 2022-01-25 | D14: 2022-01-26 | E14: =D14+1 -> 2022-01-27 | F14: 2022-01-28 | G14: 2022-01-29 | H14: 2022-01-30 | J14: =J12+7 -> 2022-02-28 | K14: =J14+1 -> 2022-03-01 | L14: =K14+1 -> 2022-03-02 | M14: 2022-03-03 | N14: 2022-03-04 | O14: 2022-03-05 | P14: 2022-03-06 | R14: =R12+7 -> 2022-03-28 | S14: =R14+1 -> 2022-03-29 | T14: =S14+1 -> 2022-03-30 | U14: 2022-03-31 | V14: 2022-04-01 | W14: 2022-04-02 | X14: 2022-04-03
D15: Restaurant Courses Restaurant Vétérinaire GPL Habillement Vidéo/DVD Compte d’épargne retraite Avocat
B16: =B14+7 -> 2022-01-31 | C16: 2022-02-01 | D16: 2022-02-02 | E16: 2022-02-03 | F16: 2022-02-04 | G16: 2022-02-05 | H16: 2022-02-06 | J16: =J14+7 -> 2022-03-07 | K16: =J16+1 -> 2022-03-08 | L16: =K16+1 -> 2022-03-09 | M16: 2022-03-10 | N16: 2022-03-11 | O16: 2022-03-12 | P16: 2022-03-13 | R16: =R14+7 -> 2022-04-04 | S16: =R16+1 -> 2022-04-05 | T16: =S16+1 -> 2022-04-06 | U16: 2022-04-07 | V16: 2022-04-08 | W16: 2022-04-09 | X16: 2022-04-10
C18: =YEAR(TODAY()) -> 2022 | D18: =DATE(C18,4,1) -> 2022-04-01 | E18: =EOMONTH(D18,0) -> 2022-04-30 | F18: =WEEKDAY(D18,2) -> 5 | K18: =YEAR(TODAY()) -> 2022 | L18: =DATE(K18,5,1) -> 2022-05-01 | M18: =EOMONTH(L18,0) -> 2022-05-31 | N18: =WEEKDAY(L18,2) -> 7 | S18: =YEAR(TODAY()) -> 2022 | T18: =DATE(S18,6,1) -> 2022-06-01 | U18: =EOMONTH(T18,0) -> 2022-06-30 | V18: =WEEKDAY(T18,2) -> 3
B20: =PROPER(TEXT(DATE(,4,1),"mmmm"))&" "& C18 -> Avril 2022 | J20: =PROPER(TEXT(DATE(,5,1),"mmmm"))&" "& K18 -> Mai 2022 | R20: =PROPER(TEXT(DATE(,6,1),"mmmm"))&" "& S18 -> Juin 2022
B21: Lundi | C21: Mardi | D21: Mercredi | E21: Jeudi | F21: Vendredi | G21: Samedi | H21: Dimanche | J21: Lundi | K21: Mardi | L21: Mercredi | M21: Jeudi | N21: Vendredi | O21: Samedi | P21: Dimanche | R21: Lundi | S21: Mardi | T21: Mercredi | U21: Jeudi | V21: Vendredi | W21: Samedi | X21: Dimanche
B22: =D18-F18+1 -> 2022-03-28 | C22: =B22+1 -> 2022-03-29 | D22: =C22+1 -> 2022-03-30 | E22: 2022-03-31 | F22: 2022-04-01 | G22: 2022-04-02 | H22: 2022-04-03 | J22: =L18-N18+1 -> 2022-04-25 | K22: =J22+1 -> 2022-04-26 | L22: =K22+1 -> 2022-04-27 | M22: 2022-04-28 | N22: 2022-04-29 | O22: 2022-04-30 | P22: 2022-05-01 | R22: =T18-V18+1 -> 2022-05-30 | S22: =R22+1 -> 2022-05-31 | T22: =S22+1 -> 2022-06-01 | U22: 2022-06-02 | V22: 2022-06-03 | W22: 2022-06-04 | X22: 2022-06-05
B24: =B22+7 -> 2022-04-04 | C24: =B24+1 -> 2022-04-05 | D24: =C24+1 -> 2022-04-06 | E24: 2022-04-07 | F24: 2022-04-08 | G24: 2022-04-09 | H24: 2022-04-10 | J24: =J22+7 -> 2022-05-02 | K24: =J24+1 -> 2022-05-03 | L24: =K24+1 -> 2022-05-04 | M24: 2022-05-05 | N24: 2022-05-06 | O24: 2022-05-07 | P24: 2022-05-08 | R24: =R22+7 -> 2022-06-06 | S24: =R24+1 -> 2022-06-07 | T24: =S24+1 -> 2022-06-08 | U24: 2022-06-09 | V24: 2022-06-10 | W24: 2022-06-11 | X24: 2022-06-12
B26: =B24+7 -> 2022-04-11 | C26: =B26+1 -> 2022-04-12 | D26: =C26+1 -> 2022-04-13 | E26: 2022-04-14 | F26: 2022-04-15 | G26: 2022-04-16 | H26: 2022-04-17 | J26: =J24+7 -> 2022-05-09 | K26: =J26+1 -> 2022-05-10 | L26: =K26+1 -> 2022-05-11 | M26: 2022-05-12 | N26: 2022-05-13 | O26: 2022-05-14 | P26: 2022-05-15 | R26: =R24+7 -> 2022-06-13 | S26: =R26+1 -> 2022-06-14 | T26: =S26+1 -> 2022-06-15 | U26: 2022-06-16 | V26: 2022-06-17 | W26: 2022-06-18 | X26: 2022-06-19
B28: =B26+7 -> 2022-04-18 | C28: =B28+1 -> 2022-04-19 | D28: =C28+1 -> 2022-04-20 | E28: 2022-04-21 | F28: 2022-04-22 | G28: 2022-04-23 | H28: 2022-04-24 | J28: =J26+7 -> 2022-05-16 | K28: =J28+1 -> 2022-05-17 | L28: =K28+1 -> 2022-05-18 | M28: 2022-05-19 | N28: 2022-05-20 | O28: 2022-05-21 | P28: 2022-05-22 | R28: =R26+7 -> 2022-06-20 | S28: =R28+1 -> 2022-06-21 | T28: =S28+1 -> 2022-06-22 | U28: 2022-06-23 | V28: 2022-06-24 | W28: 2022-06-25 | X28: 2022-06-26
B30: =B28+7 -> 2022-04-25 | C30: =B30+1 -> 2022-04-26 | D30: =C30+1 -> 2022-04-27 | E30: 2022-04-28 | F30: 2022-04-29 | G30: 2022-04-30 | H30: 2022-05-01 | J30: =J28+7 -> 2022-05-23 | K30: =J30+1 -> 2022-05-24 | L30: =K30+1 -> 2022-05-25 | M30: 2022-05-26 | N30: 2022-05-27 | O30: 2022-05-28 | P30: 2022-05-29 | R30: =R28+7 -> 2022-06-27 | S30: =R30+1 -> 2022-06-28 | T30: =S30+1 -> 2022-06-29 | U30: 2022-06-30 | V30: 2022-07-01 | W30: 2022-07-02 | X30: 2022-07-03
B32: =B30+7 -> 2022-05-02 | C32: =B32+1 -> 2022-05-03 | D32: =C32+1 -> 2022-05-04 | E32: 2022-05-05 | F32: 2022-05-06 | G32: 2022-05-07 | H32: 2022-05-08 | J32: =J30+7 -> 2022-05-30 | K32: =J32+1 -> 2022-05-31 | L32: =K32+1 -> 2022-06-01 | M32: 2022-06-02 | N32: 2022-06-03 | O32: 2022-06-04 | P32: 2022-06-05 | R32: =R30+7 -> 2022-07-04 | S32: =R32+1 -> 2022-07-05 | T32: =S32+1 -> 2022-07-06 | U32: 2022-07-07 | V32: 2022-07-08 | W32: 2022-07-09 | X32: 2022-07-10
C34: =YEAR(TODAY()) -> 2022 | D34: =DATE(C34,7,1) -> 2022-07-01 | E34: =EOMONTH(D34,0) -> 2022-07-31 | F34: =WEEKDAY(D34,2) -> 5 | K34: =YEAR(TODAY()) -> 2022 | L34: =DATE(K34,8,1) -> 2022-08-01 | M34: =EOMONTH(L34,0) -> 2022-08-31 | N34: =WEEKDAY(L34,2) -> 1 | S34: =YEAR(TODAY()) -> 2022 | T34: =DATE(S34,9,1) -> 2022-09-01 | U34: =EOMONTH(T34,0) -> 2022-09-30 | V34: =WEEKDAY(T34,2) -> 4
B36: =PROPER(TEXT(DATE(,7,1),"mmmm"))&" "& C34 -> Juillet 2022 | J36: =PROPER(TEXT(DATE(,8,1),"mmmm"))&" "& K34 -> Août 2022 | R36: =PROPER(TEXT(DATE(,9,1),"mmmm"))&" "& S34 -> Septembre 2022
B37: Lundi | C37: Mardi | D37: Mercredi | E37: Jeudi | F37: Vendredi | G37: Samedi | H37: Dimanche | J37: Lundi | K37: Mardi | L37: Mercredi | M37: Jeudi | N37: Vendredi | O37: Samedi | P37: Dimanche | R37: Lundi | S37: Mardi | T37: Mercredi | U37: Jeudi | V37: Vendredi | W37: Samedi | X37: Dimanche
B38: =D34-F34+1 -> 2022-06-27 | C38: =B38+1 -> 2022-06-28 | D38: =C38+1 -> 2022-06-29 | E38: 2022-06-30 | F38: 2022-07-01 | G38: 2022-07-02 | H38: 2022-07-03 | J38: =L34-N34+1 -> 2022-08-01 | K38: =J38+1 -> 2022-08-02 | L38: =K38+1 -> 2022-08-03 | M38: 2022-08-04 | N38: 2022-08-05 | O38: 2022-08-06 | P38: 2022-08-07 | R38: =T34-V34+1 -> 2022-08-29 | S38: =R38+1 -> 2022-08-30 | T38: =S38+1 -> 2022-08-31 | U38: 2022-09-01 | V38: 2022-09-02 | W38: 2022-09-03 | X38: 2022-09-04
B40: =B38+7 -> 2022-07-04 | C40: =B40+1 -> 2022-07-05 | D40: =C40+1 -> 2022-07-06 | E40: 2022-07-07 | F40: 2022-07-08 | G40: 2022-07-09 | H40: 2022-07-10 | J40: =J38+7 -> 2022-08-08 | K40: =J40+1 -> 2022-08-09 | L40: =K40+1 -> 2022-08-10 | M40: 2022-08-11 | N40: 2022-08-12 | O40: 2022-08-13 | P40: 2022-08-14 | R40: =R38+7 -> 2022-09-05 | S40: =R40+1 -> 2022-09-06 | T40: =S40+1 -> 2022-09-07 | U40: 2022-09-08 | V40: 2022-09-09 | W40: 2022-09-10 | X40: 2022-09-11
B42: =B40+7 -> 2022-07-11 | C42: =B42+1 -> 2022-07-12 | D42: =C42+1 -> 2022-07-13 | E42: 2022-07-14 | F42: 2022-07-15 | G42: 2022-07-16 | H42: 2022-07-17 | J42: =J40+7 -> 2022-08-15 | K42: =J42+1 -> 2022-08-16 | L42: =K42+1 -> 2022-08-17 | M42: 2022-08-18 | N42: 2022-08-19 | O42: 2022-08-20 | P42: 2022-08-21 | R42: =R40+7 -> 2022-09-12 | S42: =R42+1 -> 2022-09-13 | T42: =S42+1 -> 2022-09-14 | U42: 2022-09-15 | V42: 2022-09-16 | W42: 2022-09-17 | X42: 2022-09-18
B44: =B42+7 -> 2022-07-18 | C44: =B44+1 -> 2022-07-19 | D44: =C44+1 -> 2022-07-20 | E44: 2022-07-21 | F44: 2022-07-22 | G44: 2022-07-23 | H44: 2022-07-24 | J44: =J42+7 -> 2022-08-22 | K44: =J44+1 -> 2022-08-23 | L44: =K44+1 -> 2022-08-24 | M44: 2022-08-25 | N44: 2022-08-26 | O44: 2022-08-27 | P44: 2022-08-28 | R44: =R42+7 -> 2022-09-19 | S44: =R44+1 -> 2022-09-20 | T44: =S44+1 -> 2022-09-21 | U44: 2022-09-22 | V44: 2022-09-23 | W44: 2022-09-24 | X44: 2022-09-25
B46: =B44+7 -> 2022-07-25 | C46: =B46+1 -> 2022-07-26 | D46: =C46+1 -> 2022-07-27 | E46: 2022-07-28 | F46: 2022-07-29 | G46: 2022-07-30 | H46: 2022-07-31 | J46: =J44+7 -> 2022-08-29 | K46: =J46+1 -> 2022-08-30 | L46: =K46+1 -> 2022-08-31 | M46: 2022-09-01 | N46: 2022-09-02 | O46: 2022-09-03 | P46: 2022-09-04 | R46: =R44+7 -> 2022-09-26 | S46: =R46+1 -> 2022-09-27 | T46: =S46+1 -> 2022-09-28 | U46: 2022-09-29 | V46: 2022-09-30 | W46: 2022-10-01 | X46: 2022-10-02
B48: =B46+7 -> 2022-08-01 | C48: =B48+1 -> 2022-08-02 | D48: =C48+1 -> 2022-08-03 | E48: 2022-08-04 | F48: 2022-08-05 | G48: 2022-08-06 | H48: 2022-08-07 | J48: =J46+7 -> 2022-09-05 | K48: =J48+1 -> 2022-09-06 | L48: =K48+1 -> 2022-09-07 | M48: 2022-09-08 | N48: 2022-09-09 | O48: 2022-09-10 | P48: 2022-09-11 | R48: =R46+7 -> 2022-10-03 | S48: =R48+1 -> 2022-10-04 | T48: =S48+1 -> 2022-10-05 | U48: 2022-10-06 | V48: 2022-10-07 | W48: 2022-10-08 | X48: 2022-10-09
C50: =YEAR(TODAY()) -> 2022 | D50: =DATE(C50,10,1) -> 2022-10-01 | E50: =EOMONTH(D50,0) -> 2022-10-31 | F50: =WEEKDAY(D50,2) -> 6 | K50: =YEAR(TODAY()) -> 2022 | L50: =DATE(K50,11,1) -> 2022-11-01 | M50: =EOMONTH(L50,0) -> 2022-11-30 | N50: =WEEKDAY(L50,2) -> 2 | S50: =YEAR(TODAY()) -> 2022 | T50: =DATE(S50,12,1) -> 2022-12-01 | U50: =EOMONTH(T50,0) -> 2022-12-31 | V50: =WEEKDAY(T50,2) -> 4
B52: =PROPER(TEXT(DATE(,10,1),"mmmm"))&" "& C50 -> Octobre 2022 | J52: =PROPER(TEXT(DATE(,11,1),"mmmm"))&" "& K50 -> Novembre 2022 | R52: =PROPER(TEXT(DATE(,12,1),"mmmm"))&" "& S50 -> Décembre 2022
B53: Lundi | C53: Mardi | D53: Mercredi | E53: Jeudi | F53: Vendredi | G53: Samedi | H53: Dimanche | J53: Lundi | K53: Mardi | L53: Mercredi | M53: Jeudi | N53: Vendredi | O53: Samedi | P53: Dimanche | R53: Lundi | S53: Mardi | T53: Mercredi | U53: Jeudi | V53: Vendredi | W53: Samedi | X53: Dimanche
B54: =D50-F50+1 -> 2022-09-26 | C54: =B54+1 -> 2022-09-27 | D54: =C54+1 -> 2022-09-28 | E54: 2022-09-29 | F54: 2022-09-30 | G54: 2022-10-01 | H54: 2022-10-02 | J54: =L50-N50+1 -> 2022-10-31 | K54: =J54+1 -> 2022-11-01 | L54: =K54+1 -> 2022-11-02 | M54: 2022-11-03 | N54: 2022-11-04 | O54: 2022-11-05 | P54: 2022-11-06 | R54: =T50-V50+1 -> 2022-11-28 | S54: =R54+1 -> 2022-11-29 | T54: =S54+1 -> 2022-11-30 | U54: 2022-12-01 | V54: 2022-12-02 | W54: 2022-12-03 | X54: 2022-12-04
B56: =B54+7 -> 2022-10-03 | C56: =B56+1 -> 2022-10-04 | D56: =C56+1 -> 2022-10-05 | E56: 2022-10-06 | F56: 2022-10-07 | G56: 2022-10-08 | H56: 2022-10-09 | J56: =J54+7 -> 2022-11-07 | K56: =J56+1 -> 2022-11-08 | L56: =K56+1 -> 2022-11-09 | M56: 2022-11-10 | N56: 2022-11-11 | O56: 2022-11-12 | P56: 2022-11-13 | R56: =R54+7 -> 2022-12-05 | S56: =R56+1 -> 2022-12-06 | T56: =S56+1 -> 2022-12-07 | U56: 2022-12-08 | V56: 2022-12-09 | W56: 2022-12-10 | X56: 2022-12-11
B58: =B56+7 -> 2022-10-10 | C58: =B58+1 -> 2022-10-11 | D58: =C58+1 -> 2022-10-12 | E58: 2022-10-13 | F58: 2022-10-14 | G58: 2022-10-15 | H58: 2022-10-16 | J58: =J56+7 -> 2022-11-14 | K58: =J58+1 -> 2022-11-15 | L58: =K58+1 -> 2022-11-16 | M58: 2022-11-17 | N58: 2022-11-18 | O58: 2022-11-19 | P58: 2022-11-20 | R58: =R56+7 -> 2022-12-12 | S58: =R58+1 -> 2022-12-13 | T58: =S58+1 -> 2022-12-14 | U58: 2022-12-15 | V58: 2022-12-16 | W58: 2022-12-17 | X58: 2022-12-18
B60: =B58+7 -> 2022-10-17 | C60: =B60+1 -> 2022-10-18 | D60: =C60+1 -> 2022-10-19 | E60: 2022-10-20 | F60: 2022-10-21 | G60: 2022-10-22 | H60: 2022-10-23 | J60: =J58+7 -> 2022-11-21 | K60: =J60+1 -> 2022-11-22 | L60: =K60+1 -> 2022-11-23 | M60: 2022-11-24 | N60: 2022-11-25 | O60: 2022-11-26 | P60: 2022-11-27 | R60: =R58+7 -> 2022-12-19 | S60: =R60+1 -> 2022-12-20 | T60: =S60+1 -> 2022-12-21 | U60: 2022-12-22 | V60: 2022-12-23 | W60: 2022-12-24 | X60: =W60+1 -> 2022-12-25
B62: =B60+7 -> 2022-10-24 | C62: =B62+1 -> 2022-10-25 | D62: =C62+1 -> 2022-10-26 | E62: 2022-10-27 | F62: 2022-10-28 | G62: 2022-10-29 | H62: 2022-10-30 | J62: =J60+7 -> 2022-11-28 | K62: =J62+1 -> 2022-11-29 | L62: =K62+1 -> 2022-11-30 | M62: 2022-12-01 | N62: 2022-12-02 | O62: 2022-12-03 | P62: 2022-12-04 | R62: =R60+7 -> 2022-12-26 | S62: =R62+1 -> 2022-12-27 | T62: =S62+1 -> 2022-12-28 | U62: 2022-12-29 | V62: 2022-12-30 | W62: 2022-12-31 | X62: 2023-01-01
B64: =B62+7 -> 2022-10-31 | C64: =B64+1 -> 2022-11-01 | D64: =C64+1 -> 2022-11-02 | E64: 2022-11-03 | F64: 2022-11-04 | G64: 2022-11-05 | H64: 2022-11-06 | J64: =J62+7 -> 2022-12-05 | K64: =J64+1 -> 2022-12-06 | L64: =K64+1 -> 2022-12-07 | M64: 2022-12-08 | N64: 2022-12-09 | O64: 2022-12-10 | P64: 2022-12-11 | R64: =R62+7 -> 2023-01-02 | S64: =R64+1 -> 2023-01-03 | T64: =S64+1 -> 2023-01-04 | U64: 2023-01-05 | V64: 2023-01-06 | W64: 2023-01-07 | X64: 2023-01-08

Sheet Récapitulatif annuel (hidden)
A1: 0 | B1: 0 | C1: 0
E2: trimestre égal affichage 3 mois + graphique à coté BOUTON QUI AFFICHE CASE A COCHER
E3: par mois égal affichage mois à mois en fonction de ce que l'on veut voir (affichage par défault du mois en cours) + graphique BOUTON QUI AFFICHE CASE A COCHER
E4: par catégories égal affichage sur les grosses catégorie (alimentation, etc) + graphique BOUTON QUI AFFICHE CASE A COCHER
E5: par sous catégories égale détails d'une seule chose de la catégorie (courses pour alimentation, etc) + graphique CASE A COCHER
E6: année en cours
D12: Alimentation | G12: Animaux | J12: Transport | M12: Soins/personnels | P12: Loisirs | S12: Epargne/investissement | V12: Juridique
B14: JANVIER | D14: =IF(Janv.!B33=0,"",Janv.!B33) -> Restaurant | E14: =IF(Janv.!D33=0,"",Janv.!D33) -> 15 | G14: =IF(Janv.!F33=0,"",Janv.!F33) -> Vétérinaire | H14: =IF(Janv.!H33=0,"",Janv.!H33) -> 200 | J14: =IF(Janv.!J33=0,"",Janv.!J33) -> GPL | K14: =IF(Janv.!L33=0,"",Janv.!L33) -> 20 | M14: =IF(Janv.!N33=0,"",Janv.!N33) -> Habillement | N14: =IF(Janv.!P33=0,"",Janv.!P33) -> 50 | P14: =IF(Janv.!R33=0,"",Janv.!R33) -> Vidéo/DVD | Q14: =IF(Janv.!T33=0,"",Janv.!T33) -> 12.5 | S14: =IF(Janv.!V33=0,"",Janv.!V33) -> Compte d’épargne retraite | T14: =IF(Janv.!X33=0,"",Janv.!X33) -> 50 | V14: =IF(Janv.!Z33=0,"",Janv.!Z33) -> Avocat | W14: =IF(Janv.!AB33=0,"",Janv.!AB33) -> 150
D15: =IF(Janv.!B34=0,"",Janv.!B34) -> Courses | E15: =IF(Janv.!D34=0,"",Janv.!D34) -> 35 | G15: =IF(Janv.!F34=0,"",Janv.!F34) ->  | H15: =IF(Janv.!H34=0,"",Janv.!H34) ->  | J15: =IF(Janv.!J34=0,"",Janv.!J34) ->  | K15: =IF(Janv.!L34=0,"",Janv.!L34) ->  | M15: =IF(Janv.!N34=0,"",Janv.!N34) ->  | N15: =IF(Janv.!P34=0,"",Janv.!P34) ->  | P15: =IF(Janv.!R34=0,"",Janv.!R34) ->  | Q15: =IF(Janv.!T34=0,"",Janv.!T34) ->  | S15: =IF(Janv.!V34=0,"",Janv.!V34) ->  | T15: =IF(Janv.!X34=0,"",Janv.!X34) ->  | V15: =IF(Janv.!Z34=0,"",Janv.!Z34) ->  | W15: =IF(Janv.!AB34=0,"",Janv.!AB34) -> 
D16: =IF(Janv.!B35=0,"",Janv.!B35) -> Restaurant | E16: =IF(Janv.!D35=0,"",Janv.!D35) -> 15 | G16: =IF(Janv.!F35=0,"",Janv.!F35) ->  | H16: =IF(Janv.!H35=0,"",Janv.!H35) ->  | J16: =IF(Janv.!J35=0,"",Janv.!J35) ->  | K16: =IF(Janv.!L35=0,"",Janv.!L35) ->  | M16: =IF(Janv.!N35=0,"",Janv.!N35) ->  | N16: =IF(Janv.!P35=0,"",Janv.!P35) ->  | P16: =IF(Janv.!R35=0,"",Janv.!R35) ->  | Q16: =IF(Janv.!T35=0,"",Janv.!T35) ->  | S16: =IF(Janv.!V35=0,"",Janv.!V35) ->  | T16: =IF(Janv.!X35=0,"",Janv.!X35) ->  | V16: =IF(Janv.!Z35=0,"",Janv.!Z35) ->  | W16: =IF(Janv.!AB35=0,"",Janv.!AB35) -> 
D17: =IF(Janv.!B36=0,"",Janv.!B36) -> Fast-food | E17: =IF(Janv.!D36=0,"",Janv.!D36) ->  | G17: =IF(Janv.!F36=0,"",Janv.!F36) ->  | H17: =IF(Janv.!H36=0,"",Janv.!H36) ->  | J17: =IF(Janv.!J36=0,"",Janv.!J36) ->  | K17: =IF(Janv.!L36=0,"",Janv.!L36) ->  | M17: =IF(Janv.!N36=0,"",Janv.!N36) ->  | N17: =IF(Janv.!P36=0,"",Janv.!P36) ->  | P17: =IF(Janv.!R36=0,"",Janv.!R36) ->  | Q17: =IF(Janv.!T36=0,"",Janv.!T36) ->  | S17: =IF(Janv.!V36=0,"",Janv.!V36) ->  | T17: =IF(Janv.!X36=0,"",Janv.!X36) ->  | V17: =IF(Janv.!Z36=0,"",Janv.!Z36) ->  | W17: =IF(Janv.!AB36=0,"",Janv.!AB36) -> 
D18: =IF(Janv.!B37=0,"",Janv.!B37) ->  | E18: =IF(Janv.!D37=0,"",Janv.!D37) ->  | G18: =IF(Janv.!F37=0,"",Janv.!F37) ->  | H18: =IF(Janv.!H37=0,"",Janv.!H37) ->  | J18: =IF(Janv.!J37=0,"",Janv.!J37) ->  | K18: =IF(Janv.!L37=0,"",Janv.!L37) ->  | M18: =IF(Janv.!N37=0,"",Janv.!N37) ->  | N18: =IF(Janv.!P37=0,"",Janv.!P37) ->  | P18: =IF(Janv.!R37=0,"",Janv.!R37) ->  | Q18: =IF(Janv.!T37=0,"",Janv.!T37) ->  | S18: =IF(Janv.!V37=0,"",Janv.!V37) ->  | T18: =IF(Janv.!X37=0,"",Janv.!X37) ->  | V18: =IF(Janv.!Z37=0,"",Janv.!Z37) ->  | W18: =IF(Janv.!AB37=0,"",Janv.!AB37) -> 
D19: =IF(Janv.!B38=0,"",Janv.!B38) ->  | E19: =IF(Janv.!D38=0,"",Janv.!D38) ->  | G19: =IF(Janv.!F38=0,"",Janv.!F38) ->  | H19: =IF(Janv.!H38=0,"",Janv.!H38) ->  | J19: =IF(Janv.!J38=0,"",Janv.!J38) ->  | K19: =IF(Janv.!L38=0,"",Janv.!L38) ->  | M19: =IF(Janv.!N38=0,"",Janv.!N38) ->  | N19: =IF(Janv.!P38=0,"",Janv.!P38) ->  | P19: =IF(Janv.!R38=0,"",Janv.!R38) ->  | Q19: =IF(Janv.!T38=0,"",Janv.!T38) ->  | S19: =IF(Janv.!V38=0,"",Janv.!V38) ->  | T19: =IF(Janv.!X38=0,"",Janv.!X38) ->  | V19: =IF(Janv.!Z38=0,"",Janv.!Z38) ->  | W19: =IF(Janv.!AB38=0,"",Janv.!AB38) -> 
D20: =IF(Janv.!B39=0,"",Janv.!B39) ->  | E20: =IF(Janv.!D39=0,"",Janv.!D39) ->  | G20: =IF(Janv.!F39=0,"",Janv.!F39) ->  | H20: =IF(Janv.!H39=0,"",Janv.!H39) ->  | J20: =IF(Janv.!J39=0,"",Janv.!J39) ->  | K20: =IF(Janv.!L39=0,"",Janv.!L39) ->  | M20: =IF(Janv.!N39=0,"",Janv.!N39) ->  | N20: =IF(Janv.!P39=0,"",Janv.!P39) ->  | P20: =IF(Janv.!R39=0,"",Janv.!R39) ->  | Q20: =IF(Janv.!T39=0,"",Janv.!T39) ->  | S20: =IF(Janv.!V39=0,"",Janv.!V39) ->  | T20: =IF(Janv.!X39=0,"",Janv.!X39) ->  | V20: =IF(Janv.!Z39=0,"",Janv.!Z39) ->  | W20: =IF(Janv.!AB39=0,"",Janv.!AB39) -> 
D21: =IF(Janv.!B40=0,"",Janv.!B40) ->  | E21: =IF(Janv.!D40=0,"",Janv.!D40) ->  | G21: =IF(Janv.!F40=0,"",Janv.!F40) ->  | H21: =IF(Janv.!H40=0,"",Janv.!H40) ->  | J21: =IF(Janv.!J40=0,"",Janv.!J40) ->  | K21: =IF(Janv.!L40=0,"",Janv.!L40) ->  | M21: =IF(Janv.!N40=0,"",Janv.!N40) ->  | N21: =IF(Janv.!P40=0,"",Janv.!P40) ->  | P21: =IF(Janv.!R40=0,"",Janv.!R40) ->  | Q21: =IF(Janv.!T40=0,"",Janv.!T40) ->  | S21: =IF(Janv.!V40=0,"",Janv.!V40) ->  | T21: =IF(Janv.!X40=0,"",Janv.!X40) ->  | V21: =IF(Janv.!Z40=0,"",Janv.!Z40) ->  | W21: =IF(Janv.!AB40=0,"",Janv.!AB40) -> 
D22: =IF(Janv.!B41=0,"",Janv.!B41) ->  | E22: =IF(Janv.!D41=0,"",Janv.!D41) ->  | G22: =IF(Janv.!F41=0,"",Janv.!F41) ->  | H22: =IF(Janv.!H41=0,"",Janv.!H41) ->  | J22: =IF(Janv.!J41=0,"",Janv.!J41) ->  | K22: =IF(Janv.!L41=0,"",Janv.!L41) ->  | M22: =IF(Janv.!N41=0,"",Janv.!N41) ->  | N22: =IF(Janv.!P41=0,"",Janv.!P41) ->  | P22: =IF(Janv.!R41=0,"",Janv.!R41) ->  | Q22: =IF(Janv.!T41=0,"",Janv.!T41) ->  | S22: =IF(Janv.!V41=0,"",Janv.!V41) ->  | T22: =IF(Janv.!X41=0,"",Janv.!X41) ->  | V22: =IF(Janv.!Z41=0,"",Janv.!Z41) ->  | W22: =IF(Janv.!AB41=0,"",Janv.!AB41) -> 
D23: =IF(Janv.!B42=0,"",Janv.!B42) ->  | E23: =IF(Janv.!D42=0,"",Janv.!D42) ->  | G23: =IF(Janv.!F42=0,"",Janv.!F42) ->  | H23: =IF(Janv.!H42=0,"",Janv.!H42) ->  | J23: =IF(Janv.!J42=0,"",Janv.!J42) ->  | K23: =IF(Janv.!L42=0,"",Janv.!L42) ->  | M23: =IF(Janv.!N42=0,"",Janv.!N42) ->  | N23: =IF(Janv.!P42=0,"",Janv.!P42) ->  | P23: =IF(Janv.!R42=0,"",Janv.!R42) ->  | Q23: =IF(Janv.!T42=0,"",Janv.!T42) ->  | S23: =IF(Janv.!V42=0,"",Janv.!V42) ->  | T23: =IF(Janv.!X42=0,"",Janv.!X42) ->  | V23: =IF(Janv.!Z42=0,"",Janv.!Z42) ->  | W23: =IF(Janv.!AB42=0,"",Janv.!AB42) -> 
D24: =IF(Janv.!B43=0,"",Janv.!B43) ->  | E24: =IF(Janv.!D43=0,"",Janv.!D43) ->  | G24: =IF(Janv.!F43=0,"",Janv.!F43) ->  | H24: =IF(Janv.!H43=0,"",Janv.!H43) ->  | J24: =IF(Janv.!J43=0,"",Janv.!J43) ->  | K24: =IF(Janv.!L43=0,"",Janv.!L43) ->  | M24: =IF(Janv.!N43=0,"",Janv.!N43) ->  | N24: =IF(Janv.!P43=0,"",Janv.!P43) ->  | P24: =IF(Janv.!R43=0,"",Janv.!R43) ->  | Q24: =IF(Janv.!T43=0,"",Janv.!T43) ->  | S24: =IF(Janv.!V43=0,"",Janv.!V43) ->  | T24: =IF(Janv.!X43=0,"",Janv.!X43) ->  | V24: =IF(Janv.!Z43=0,"",Janv.!Z43) ->  | W24: =IF(Janv.!AB43=0,"",Janv.!AB43) -> 
D25: =IF(Janv.!B44=0,"",Janv.!B44) ->  | E25: =IF(Janv.!D44=0,"",Janv.!D44) ->  | G25: =IF(Janv.!F44=0,"",Janv.!F44) ->  | H25: =IF(Janv.!H44=0,"",Janv.!H44) ->  | J25: =IF(Janv.!J44=0,"",Janv.!J44) ->  | K25: =IF(Janv.!L44=0,"",Janv.!L44) ->  | M25: =IF(Janv.!N44=0,"",Janv.!N44) ->  | N25: =IF(Janv.!P44=0,"",Janv.!P44) ->  | P25: =IF(Janv.!R44=0,"",Janv.!R44) ->  | Q25: =IF(Janv.!T44=0,"",Janv.!T44) ->  | S25: =IF(Janv.!V44=0,"",Janv.!V44) ->  | T25: =IF(Janv.!X44=0,"",Janv.!X44) ->  | V25: =IF(Janv.!Z44=0,"",Janv.!Z44) ->  | W25: =IF(Janv.!AB44=0,"",Janv.!AB44) -> 
D26: =IF(Janv.!B45=0,"",Janv.!B45) ->  | E26: =IF(Janv.!D45=0,"",Janv.!D45) ->  | G26: =IF(Janv.!F45=0,"",Janv.!F45) ->  | H26: =IF(Janv.!H45=0,"",Janv.!H45) ->  | J26: =IF(Janv.!J45=0,"",Janv.!J45) ->  | K26: =IF(Janv.!L45=0,"",Janv.!L45) ->  | M26: =IF(Janv.!N45=0,"",Janv.!N45) ->  | N26: =IF(Janv.!P45=0,"",Janv.!P45) ->  | P26: =IF(Janv.!R45=0,"",Janv.!R45) ->  | Q26: =IF(Janv.!T45=0,"",Janv.!T45) ->  | S26: =IF(Janv.!V45=0,"",Janv.!V45) ->  | T26: =IF(Janv.!X45=0,"",Janv.!X45) ->  | V26: =IF(Janv.!Z45=0,"",Janv.!Z45) ->  | W26: =IF(Janv.!AB45=0,"",Janv.!AB45) -> 
D27: =IF(Janv.!B46=0,"",Janv.!B46) ->  | E27: =IF(Janv.!D46=0,"",Janv.!D46) ->  | G27: =IF(Janv.!F46=0,"",Janv.!F46) ->  | H27: =IF(Janv.!H46=0,"",Janv.!H46) ->  | J27: =IF(Janv.!J46=0,"",Janv.!J46) ->  | K27: =IF(Janv.!L46=0,"",Janv.!L46) ->  | M27: =IF(Janv.!N46=0,"",Janv.!N46) ->  | N27: =IF(Janv.!P46=0,"",Janv.!P46) ->  | P27: =IF(Janv.!R46=0,"",Janv.!R46) ->  | Q27: =IF(Janv.!T46=0,"",Janv.!T46) ->  | S27: =IF(Janv.!V46=0,"",Janv.!V46) ->  | T27: =IF(Janv.!X46=0,"",Janv.!X46) ->  | V27: =IF(Janv.!Z46=0,"",Janv.!Z46) ->  | W27: =IF(Janv.!AB46=0,"",Janv.!AB46) -> 
D28: =IF(Janv.!B47=0,"",Janv.!B47) ->  | E28: =IF(Janv.!D47=0,"",Janv.!D47) ->  | G28: =IF(Janv.!F47=0,"",Janv.!F47) ->  | H28: =IF(Janv.!H47=0,"",Janv.!H47) ->  | J28: =IF(Janv.!J47=0,"",Janv.!J47) ->  | K28: =IF(Janv.!L47=0,"",Janv.!L47) ->  | M28: =IF(Janv.!N47=0,"",Janv.!N47) ->  | N28: =IF(Janv.!P47=0,"",Janv.!P47) ->  | P28: =IF(Janv.!R47=0,"",Janv.!R47) ->  | Q28: =IF(Janv.!T47=0,"",Janv.!T47) ->  | S28: =IF(Janv.!V47=0,"",Janv.!V47) ->  | T28: =IF(Janv.!X47=0,"",Janv.!X47) ->  | V28: =IF(Janv.!Z47=0,"",Janv.!Z47) ->  | W28: =IF(Janv.!AB47=0,"",Janv.!AB47) -> 
D29: =IF(Janv.!B48=0,"",Janv.!B48) ->  | E29: =IF(Janv.!D48=0,"",Janv.!D48) ->  | G29: =IF(Janv.!F48=0,"",Janv.!F48) ->  | H29: =IF(Janv.!H48=0,"",Janv.!H48) ->  | J29: =IF(Janv.!J48=0,"",Janv.!J48) ->  | K29: =IF(Janv.!L48=0,"",Janv.!L48) ->  | M29: =IF(Janv.!N48=0,"",Janv.!N48) ->  | N29: =IF(Janv.!P48=0,"",Janv.!P48) ->  | P29: =IF(Janv.!R48=0,"",Janv.!R48) ->  | Q29: =IF(Janv.!T48=0,"",Janv.!T48) ->  | S29: =IF(Janv.!V48=0,"",Janv.!V48) ->  | T29: =IF(Janv.!X48=0,"",Janv.!X48) ->  | V29: =IF(Janv.!Z48=0,"",Janv.!Z48) ->  | W29: =IF(Janv.!AB48=0,"",Janv.!AB48) -> 
D30: =IF(Janv.!B49=0,"",Janv.!B49) ->  | E30: =IF(Janv.!D49=0,"",Janv.!D49) ->  | G30: =IF(Janv.!F49=0,"",Janv.!F49) ->  | H30: =IF(Janv.!H49=0,"",Janv.!H49) ->  | J30: =IF(Janv.!J49=0,"",Janv.!J49) ->  | K30: =IF(Janv.!L49=0,"",Janv.!L49) ->  | M30: =IF(Janv.!N49=0,"",Janv.!N49) ->  | N30: =IF(Janv.!P49=0,"",Janv.!P49) ->  | P30: =IF(Janv.!R49=0,"",Janv.!R49) ->  | Q30: =IF(Janv.!T49=0,"",Janv.!T49) ->  | S30: =IF(Janv.!V49=0,"",Janv.!V49) ->  | T30: =IF(Janv.!X49=0,"",Janv.!X49) ->  | V30: =IF(Janv.!Z49=0,"",Janv.!Z49) ->  | W30: =IF(Janv.!AB49=0,"",Janv.!AB49) -> 
D31: =IF(Janv.!B50=0,"",Janv.!B50) ->  | E31: =IF(Janv.!D50=0,"",Janv.!D50) ->  | G31: =IF(Janv.!F50=0,"",Janv.!F50) ->  | H31: =IF(Janv.!H50=0,"",Janv.!H50) ->  | J31: =IF(Janv.!J50=0,"",Janv.!J50) ->  | K31: =IF(Janv.!L50=0,"",Janv.!L50) ->  | M31: =IF(Janv.!N50=0,"",Janv.!N50) ->  | N31: =IF(Janv.!P50=0,"",Janv.!P50) ->  | P31: =IF(Janv.!R50=0,"",Janv.!R50) ->  | Q31: =IF(Janv.!T50=0,"",Janv.!T50) ->  | S31: =IF(Janv.!V50=0,"",Janv.!V50) ->  | T31: =IF(Janv.!X50=0,"",Janv.!X50) ->  | V31: =IF(Janv.!Z50=0,"",Janv.!Z50) ->  | W31: =IF(Janv.!AB50=0,"",Janv.!AB50) -> 
D32: =IF(Janv.!B51=0,"",Janv.!B51) ->  | E32: =IF(Janv.!D51=0,"",Janv.!D51) ->  | G32: =IF(Janv.!F51=0,"",Janv.!F51) ->  | H32: =IF(Janv.!H51=0,"",Janv.!H51) ->  | J32: =IF(Janv.!J51=0,"",Janv.!J51) ->  | K32: =IF(Janv.!L51=0,"",Janv.!L51) ->  | M32: =IF(Janv.!N51=0,"",Janv.!N51) ->  | N32: =IF(Janv.!P51=0,"",Janv.!P51) ->  | P32: =IF(Janv.!R51=0,"",Janv.!R51) ->  | Q32: =IF(Janv.!T51=0,"",Janv.!T51) ->  | S32: =IF(Janv.!V51=0,"",Janv.!V51) ->  | T32: =IF(Janv.!X51=0,"",Janv.!X51) ->  | V32: =IF(Janv.!Z51=0,"",Janv.!Z51) ->  | W32: =IF(Janv.!AB51=0,"",Janv.!AB51) -> 
D33: =IF(Janv.!B52=0,"",Janv.!B52) ->  | E33: =IF(Janv.!D52=0,"",Janv.!D52) ->  | G33: =IF(Janv.!F52=0,"",Janv.!F52) ->  | H33: =IF(Janv.!H52=0,"",Janv.!H52) ->  | J33: =IF(Janv.!J52=0,"",Janv.!J52) ->  | K33: =IF(Janv.!L52=0,"",Janv.!L52) ->  | M33: =IF(Janv.!N52=0,"",Janv.!N52) ->  | N33: =IF(Janv.!P52=0,"",Janv.!P52) ->  | P33: =IF(Janv.!R52=0,"",Janv.!R52) ->  | Q33: =IF(Janv.!T52=0,"",Janv.!T52) ->  | S33: =IF(Janv.!V52=0,"",Janv.!V52) ->  | T33: =IF(Janv.!X52=0,"",Janv.!X52) ->  | V33: =IF(Janv.!Z52=0,"",Janv.!Z52) ->  | W33: =IF(Janv.!AB52=0,"",Janv.!AB52) -> 
D34: =IF(Janv.!B53=0,"",Janv.!B53) ->  | E34: =IF(Janv.!D53=0,"",Janv.!D53) ->  | G34: =IF(Janv.!F53=0,"",Janv.!F53) ->  | H34: =IF(Janv.!H53=0,"",Janv.!H53) ->  | J34: =IF(Janv.!J53=0,"",Janv.!J53) ->  | K34: =IF(Janv.!L53=0,"",Janv.!L53) ->  | M34: =IF(Janv.!N53=0,"",Janv.!N53) ->  | N34: =IF(Janv.!P53=0,"",Janv.!P53) ->  | P34: =IF(Janv.!R53=0,"",Janv.!R53) ->  | Q34: =IF(Janv.!T53=0,"",Janv.!T53) ->  | S34: =IF(Janv.!V53=0,"",Janv.!V53) ->  | T34: =IF(Janv.!X53=0,"",Janv.!X53) ->  | V34: =IF(Janv.!Z53=0,"",Janv.!Z53) ->  | W34: =IF(Janv.!AB53=0,"",Janv.!AB53) -> 
D35: =IF(Janv.!B54=0,"",Janv.!B54) ->  | E35: =IF(Janv.!D54=0,"",Janv.!D54) ->  | G35: =IF(Janv.!F54=0,"",Janv.!F54) ->  | H35: =IF(Janv.!H54=0,"",Janv.!H54) ->  | J35: =IF(Janv.!J54=0,"",Janv.!J54) ->  | K35: =IF(Janv.!L54=0,"",Janv.!L54) ->  | M35: =IF(Janv.!N54=0,"",Janv.!N54) ->  | N35: =IF(Janv.!P54=0,"",Janv.!P54) ->  | P35: =IF(Janv.!R54=0,"",Janv.!R54) ->  | Q35: =IF(Janv.!T54=0,"",Janv.!T54) ->  | S35: =IF(Janv.!V54=0,"",Janv.!V54) ->  | T35: =IF(Janv.!X54=0,"",Janv.!X54) ->  | V35: =IF(Janv.!Z54=0,"",Janv.!Z54) ->  | W35: =IF(Janv.!AB54=0,"",Janv.!AB54) -> 
D36: =IF(Janv.!B55=0,"",Janv.!B55) ->  | E36: =IF(Janv.!D55=0,"",Janv.!D55) ->  | G36: =IF(Janv.!F55=0,"",Janv.!F55) ->  | H36: =IF(Janv.!H55=0,"",Janv.!H55) ->  | J36: =IF(Janv.!J55=0,"",Janv.!J55) ->  | K36: =IF(Janv.!L55=0,"",Janv.!L55) ->  | M36: =IF(Janv.!N55=0,"",Janv.!N55) ->  | N36: =IF(Janv.!P55=0,"",Janv.!P55) ->  | P36: =IF(Janv.!R55=0,"",Janv.!R55) ->  | Q36: =IF(Janv.!T55=0,"",Janv.!T55) ->  | S36: =IF(Janv.!V55=0,"",Janv.!V55) ->  | T36: =IF(Janv.!X55=0,"",Janv.!X55) ->  | V36: =IF(Janv.!Z55=0,"",Janv.!Z55) ->  | W36: =IF(Janv.!AB55=0,"",Janv.!AB55) -> 
D37: =IF(Janv.!B56=0,"",Janv.!B56) ->  | E37: =IF(Janv.!D56=0,"",Janv.!D56) ->  | G37: =IF(Janv.!F56=0,"",Janv.!F56) ->  | H37: =IF(Janv.!H56=0,"",Janv.!H56) ->  | J37: =IF(Janv.!J56=0,"",Janv.!J56) ->  | K37: =IF(Janv.!L56=0,"",Janv.!L56) ->  | M37: =IF(Janv.!N56=0,"",Janv.!N56) ->  | N37: =IF(Janv.!P56=0,"",Janv.!P56) ->  | P37: =IF(Janv.!R56=0,"",Janv.!R56) ->  | Q37: =IF(Janv.!T56=0,"",Janv.!T56) ->  | S37: =IF(Janv.!V56=0,"",Janv.!V56) ->  | T37: =IF(Janv.!X56=0,"",Janv.!X56) ->  | V37: =IF(Janv.!Z56=0,"",Janv.!Z56) ->  | W37: =IF(Janv.!AB56=0,"",Janv.!AB56) -> 
D38: =IF(Janv.!B57=0,"",Janv.!B57) ->  | E38: =IF(Janv.!D57=0,"",Janv.!D57) ->  | G38: =IF(Janv.!F57=0,"",Janv.!F57) ->  | H38: =IF(Janv.!H57=0,"",Janv.!H57) ->  | J38: =IF(Janv.!J57=0,"",Janv.!J57) ->  | K38: =IF(Janv.!L57=0,"",Janv.!L57) ->  | M38: =IF(Janv.!N57=0,"",Janv.!N57) ->  | N38: =IF(Janv.!P57=0,"",Janv.!P57) ->  | P38: =IF(Janv.!R57=0,"",Janv.!R57) ->  | Q38: =IF(Janv.!T57=0,"",Janv.!T57) ->  | S38: =IF(Janv.!V57=0,"",Janv.!V57) ->  | T38: =IF(Janv.!X57=0,"",Janv.!X57) ->  | V38: =IF(Janv.!Z57=0,"",Janv.!Z57) ->  | W38: =IF(Janv.!AB57=0,"",Janv.!AB57) -> 
D39: =IF(Janv.!B58=0,"",Janv.!B58) ->  | E39: =IF(Janv.!D58=0,"",Janv.!D58) ->  | G39: =IF(Janv.!F58=0,"",Janv.!F58) ->  | H39: =IF(Janv.!H58=0,"",Janv.!H58) ->  | J39: =IF(Janv.!J58=0,"",Janv.!J58) ->  | K39: =IF(Janv.!L58=0,"",Janv.!L58) ->  | M39: =IF(Janv.!N58=0,"",Janv.!N58) ->  | N39: =IF(Janv.!P58=0,"",Janv.!P58) ->  | P39: =IF(Janv.!R58=0,"",Janv.!R58) ->  | Q39: =IF(Janv.!T58=0,"",Janv.!T58) ->  | S39: =IF(Janv.!V58=0,"",Janv.!V58) ->  | T39: =IF(Janv.!X58=0,"",Janv.!X58) ->  | V39: =IF(Janv.!Z58=0,"",Janv.!Z58) ->  | W39: =IF(Janv.!AB58=0,"",Janv.!AB58) -> 
D40: =IF(Janv.!B59=0,"",Janv.!B59) ->  | E40: =IF(Janv.!D59=0,"",Janv.!D59) ->  | G40: =IF(Janv.!F59=0,"",Janv.!F59) ->  | H40: =IF(Janv.!H59=0,"",Janv.!H59) ->  | J40: =IF(Janv.!J59=0,"",Janv.!J59) ->  | K40: =IF(Janv.!L59=0,"",Janv.!L59) ->  | M40: =IF(Janv.!N59=0,"",Janv.!N59) ->  | N40: =IF(Janv.!P59=0,"",Janv.!P59) ->  | P40: =IF(Janv.!R59=0,"",Janv.!R59) ->  | Q40: =IF(Janv.!T59=0,"",Janv.!T59) ->  | S40: =IF(Janv.!V59=0,"",Janv.!V59) ->  | T40: =IF(Janv.!X59=0,"",Janv.!X59) ->  | V40: =IF(Janv.!Z59=0,"",Janv.!Z59) ->  | W40: =IF(Janv.!AB59=0,"",Janv.!AB59) -> 
D41: =IF(Janv.!B60=0,"",Janv.!B60) ->  | E41: =IF(Janv.!D60=0,"",Janv.!D60) ->  | G41: =IF(Janv.!F60=0,"",Janv.!F60) ->  | H41: =IF(Janv.!H60=0,"",Janv.!H60) ->  | J41: =IF(Janv.!J60=0,"",Janv.!J60) ->  | K41: =IF(Janv.!L60=0,"",Janv.!L60) ->  | M41: =IF(Janv.!N60=0,"",Janv.!N60) ->  | N41: =IF(Janv.!P60=0,"",Janv.!P60) ->  | P41: =IF(Janv.!R60=0,"",Janv.!R60) ->  | Q41: =IF(Janv.!T60=0,"",Janv.!T60) ->  | S41: =IF(Janv.!V60=0,"",Janv.!V60) ->  | T41: =IF(Janv.!X60=0,"",Janv.!X60) ->  | V41: =IF(Janv.!Z60=0,"",Janv.!Z60) ->  | W41: =IF(Janv.!AB60=0,"",Janv.!AB60) -> 
D42: =IF(Janv.!B61=0,"",Janv.!B61) ->  | E42: =IF(Janv.!D61=0,"",Janv.!D61) ->  | G42: =IF(Janv.!F61=0,"",Janv.!F61) ->  | H42: =IF(Janv.!H61=0,"",Janv.!H61) ->  | J42: =IF(Janv.!J61=0,"",Janv.!J61) ->  | K42: =IF(Janv.!L61=0,"",Janv.!L61) ->  | M42: =IF(Janv.!N61=0,"",Janv.!N61) ->  | N42: =IF(Janv.!P61=0,"",Janv.!P61) ->  | P42: =IF(Janv.!R61=0,"",Janv.!R61) ->  | Q42: =IF(Janv.!T61=0,"",Janv.!T61) ->  | S42: =IF(Janv.!V61=0,"",Janv.!V61) ->  | T42: =IF(Janv.!X61=0,"",Janv.!X61) ->  | V42: =IF(Janv.!Z61=0,"",Janv.!Z61) ->  | W42: =IF(Janv.!AB61=0,"",Janv.!AB61) -> 
D43: =IF(Janv.!B38=0,"",Janv.!B38) ->  | E43: =IF(Janv.!D38=0,"",Janv.!D38) -> 
D44: ="Total" & " " & $P$1 -> Total | E44: =SUBTOTAL(109,E14:E18) -> 0 | G44: ="Total" & " " & $P$1 -> Total | H44: =SUBTOTAL(109,H14:H18) -> 0 | J44: ="Total" & " " & $P$1 -> Total | K44: =SUBTOTAL(109,K14:K18) -> 0 | M44: ="Total" & " " & $P$1 -> Total | N44: =SUBTOTAL(109,N14:N18) -> 0 | P44: ="Total" & " " & $P$1 -> Total | Q44: =SUBTOTAL(109,Q14:Q18) -> 0 | S44: ="Total" & " " & $P$1 -> Total | T44: =SUBTOTAL(109,T14:T18) -> 0 | V44: ="Total" & " " & $P$1 -> Total | W44: =SUBTOTAL(109,W14:W18) -> 0

Sheet Janv.
B2: CREDIT | J2: DEBITS MENSUEL
B4: Revenu | F4: Reste à vivre | J4: Logement | N4: Assurance | R4: Emprunt | V4: Impôt
B6: Revenu mensuel | D6: 1000 | F6: Restant après débit mensuel | H6: =Revenu[[#Totals],[Colonne2]]-(SUM(Logement[[#Totals],[Colonne2]],Assurance[[#Totals],[Colonne2]],Emprunt[[#Totals],[Colonne2]],Impôts[[#Totals],[Colonne2]])) -> 1000 | J6: Emprunt ou loyer N°1 | L6: 0 | N6: Maison | P6: 0 | R6: Personnels | T6: 0 | V6: Locaux | X6: 0
B7: Restant année précédente | D7: 0 | F7: Frais annuel assurance voiture | H7: 0 | J7: Emprunt ou loyer N°2 | L7: 0 | N7: Santé | P7: 0 | R7: Étudiants | T7: 0 | V7: Foncier | X7: 0
B8: Remboursement frais bancaire | D8: 0 | F8: Frais annuel assurance vie | H8: 0 | J8: Téléphone | L8: 0 | N8: Vie | P8: 0 | R8: Carte de crédit | T8: 0 | V8: Habitation | X8: 0
B9: Autres revenus | D9: 0 | F9: Frais annuel assurance maison | H9: 0 | J9: Électricité | L9: 0 | N9: Mutuelle | P9: 0 | R9: Carte de crédit | T9: 0 | V9: Autre | X9: 0
B10: Autres revenus | D10: 0 | F10: Abonnement annuel Amazon | H10: 0 | J10: Gaz | L10: 0 | N10: Voiture | P10: 0 | R10: Carte de crédit | T10: 0 | V10: Autre | X10: 0
B11: Autres revenus | D11: 0 | F11: Autre | H11: 0 | J11: Eau | L11: 0 | N11: Autre | P11: 0 | R11: Autre | T11: 0 | V11: Autre | X11: 0
B12: Autres revenus | D12: 0 | F12: Autre | H12: 0 | J12: Internet | L12: 0 | N12: Autre | P12: 0 | R12: Autre | T12: 0 | V12: Autre | X12: 0
B13: Autres revenus | D13: 0 | F13: Autre | H13: 0 | J13: Ordures ménagères | L13: 0 | N13: Autre | P13: 0 | R13: Autre | T13: 0 | V13: Autre | X13: 0
B14: Total | D14: =SUBTOTAL(109,Revenu[Colonne2]) -> 1000 | F14: Autre | H14: 0 | J14: Entretien ou réparations | L14: 0 | N14: Autre | P14: 0 | R14: Autre | T14: 0 | V14: Total | X14: =SUBTOTAL(109,Impôts[Colonne2]) -> 0
F15: Autre | H15: 0 | J15: Copropriété | L15: 0 | N15: Autre | P15: 0 | R15: Autre | T15: 0
F16: Total | H16: =SUBTOTAL(109,Reste_à_vivre[Colonne2]) -> 1000 | J16: Autre | L16: 0 | N16: Total | P16: =SUBTOTAL(109,Assurance[Colonne2]) -> 0 | R16: Total | T16: =SUBTOTAL(109,Emprunt[Colonne2]) -> 0
J17: Autre | L17: 0
J18: Autre | L18: 0
J19: Autre | L19: 0
J20: Autre | L20: 0
J21: Total | L21: =SUBTOTAL(109,Logement[Colonne2]) -> 0
B24: Restant total | F24: =Reste_à_vivre[[#Totals],[Colonne2]]-(SUM(Dépense_alimentation[[#Totals],[Somme]],Dépense_animaux[[#Totals],[Somme]],Dépense_transport[[#Totals],[Somme]],Dépense_soins_personnels[[#Totals],[Somme]],Dépense_loisirs[[#Totals],[Somme]],Dépense_epargne_investissement[[#Totals],[Somme]],Dépense_juridique[[#Totals],[Somme]])) -> 452.5
B28: LISTE DES DEPENSES
B30: Alimentation | F30: Animaux | J30: Transport | N30: Soins / personnels | R30: Loisirs | V30: Epargne/investissement | Z30: Juridique
B32: Type | C32: Date | D32: Somme | F32: Type | G32: Date | H32: Somme | J32: Type | K32: Date | L32: Somme | N32: Type | O32: Date | P32: Somme | R32: Type | S32: Date | T32: Somme | V32: Type | W32: Date | X32: Somme | Z32: Type | AA32: Date | AB32: Somme
B33: Restaurant | C33: 2022-01-26 | D33: 15 | F33: Vétérinaire | G33: 2022-01-26 | H33: 200 | J33: GPL | K33: 2022-01-26 | L33: 20 | N33: Habillement | O33: 2022-01-26 | P33: 50 | R33: Vidéo/DVD | S33: 2022-01-26 | T33: 12.5 | V33: Compte d’épargne retraite | W33: 2022-01-26 | X33: 50 | Z33: Avocat | AA33: 2022-01-26 | AB33: 150
B34: Courses | C34: 2022-01-26 | D34: 35 | H34: 0 | L34: 0 | P34: 0 | T34: 0 | X34: 0 | AB34: 0
B35: Restaurant | C35: 2022-01-26 | D35: 15 | H35: 0 | L35: 0 | P35: 0 | T35: 0 | X35: 0 | AB35: 0
B36: Fast-food | C36: 2022-01-27 | D36: 0 | H36: 0 | L36: 0 | P36: 0 | T36: 0 | X36: 0 | AB36: 0
D37: 0 | H37: 0 | L37: 0 | P37: 0 | T37: 0 | X37: 0 | AB37: 0
D38: 0 | H38: 0 | L38: 0 | P38: 0 | T38: 0 | X38: 0 | AB38: 0
D39: 0 | H39: 0 | L39: 0 | P39: 0 | T39: 0 | X39: 0 | AB39: 0
D40: 0 | H40: 0 | L40: 0 | P40: 0 | T40: 0 | X40: 0 | AB40: 0
D41: 0 | H41: 0 | L41: 0 | P41: 0 | T41: 0 | X41: 0 | AB41: 0
D42: 0 | H42: 0 | L42: 0 | P42: 0 | T42: 0 | X42: 0 | AB42: 0
D43: 0 | H43: 0 | L43: 0 | P43: 0 | T43: 0 | X43: 0 | AB43: 0
D44: 0 | H44: 0 | L44: 0 | P44: 0 | T44: 0 | X44: 0 | AB44: 0
D45: 0 | H45: 0 | L45: 0 | P45: 0 | T45: 0 | X45: 0 | AB45: 0
D46: 0 | H46: 0 | L46: 0 | P46: 0 | T46: 0 | X46: 0 | AB46: 0
D47: 0 | H47: 0 | L47: 0 | P47: 0 | T47: 0 | X47: 0 | AB47: 0
D48: 0 | H48: 0 | L48: 0 | P48: 0 | T48: 0 | X48: 0 | AB48: 0
D49: 0 | H49: 0 | L49: 0 | P49: 0 | T49: 0 | X49: 0 | AB49: 0
D50: 0 | H50: 0 | L50: 0 | P50: 0 | T50: 0 | X50: 0 | AB50: 0
D51: 0 | H51: 0 | L51: 0 | P51: 0 | T51: 0 | X51: 0 | AB51: 0
D52: 0 | H52: 0 | L52: 0 | P52: 0 | T52: 0 | X52: 0 | AB52: 0
D53: 0 | H53: 0 | L53: 0 | P53: 0 | T53: 0 | X53: 0 | AB53: 0
D54: 0 | H54: 0 | L54: 0 | P54: 0 | T54: 0 | X54: 0 | AB54: 0
D55: 0 | H55: 0 | L55: 0 | P55: 0 | T55: 0 | X55: 0 | AB55: 0
D56: 0 | H56: 0 | L56: 0 | P56: 0 | T56: 0 | X56: 0 | AB56: 0
D57: 0 | H57: 0 | L57: 0 | P57: 0 | T57: 0 | X57: 0 | AB57: 0
D58: 0 | H58: 0 | L58: 0 | P58: 0 | T58: 0 | X58: 0 | AB58: 0
D59: 0 | H59: 0 | L59: 0 | P59: 0 | T59: 0 | X59: 0 | AB59: 0
D60: 0 | H60: 0 | L60: 0 | P60: 0 | T60: 0 | X60: 0 | AB60: 0
D61: 0 | H61: 0 | L61: 0 | P61: 0 | T61: 0 | X61: 0 | AB61: 0
B62: Total | D62: =SUBTOTAL(109,Dépense_alimentation[Somme]) -> 65 | F62: Total | H62: =SUBTOTAL(109,Dépense_animaux[Somme]) -> 200 | J62: Total | L62: =SUBTOTAL(109,Dépense_transport[Somme]) -> 20 | N62: Total | P62: =SUBTOTAL(109,Dépense_soins_personnels[Somme]) -> 50 | R62: Total | T62: =SUBTOTAL(109,Dépense_loisirs[Somme]) -> 12.5 | V62: Total | X62: =SUBTOTAL(109,Dépense_epargne_investissement[Somme]) -> 50 | Z62: Total | AB62: =SUBTOTAL(109,Dépense_juridique[Somme]) -> 150

Sheet Fév. (hidden)
B2: CREDIT | J2: DEBITS MENSUEL
B4: Revenu | F4: Reste à vivre | J4: Logement | N4: Assurance | R4: Emprunt | V4: Impôt
B6: Revenu mensuel | D6: 1000 | F6: Restant après débit mensuel | H6: =Revenu32[[#Totals],[Colonne2]]-(SUM(Logement33[[#Totals],[Colonne2]],Assurance34[[#Totals],[Colonne2]],Emprunt35[[#Totals],[Colonne2]],Impôts36[[#Totals],[Colonne2]])) -> 1452.5 | J6: Emprunt ou loyer N°1 | L6: 0 | N6: Maison | P6: 0 | R6: Personnels | T6: 0 | V6: Locaux | X6: 0
B7: Restant mois précédent | D7: =Janv.!F24 -> 452.5 | F7: Frais annuel assurance voiture | H7: 0 | J7: Emprunt ou loyer N°2 | L7: 0 | N7: Santé | P7: 0 | R7: Étudiants | T7: 0 | V7: Foncier | X7: 0
B8: Remboursement frais bancaire | D8: 0 | F8: Frais annuel assurance vie | H8: 0 | J8: Téléphone | L8: 0 | N8: Vie | P8: 0 | R8: Carte de crédit | T8: 0 | V8: Habitation | X8: 0
B9: Autres revenus | D9: 0 | F9: Frais annuel assurance maison | H9: 0 | J9: Électricité | L9: 0 | N9: Mutuelle | P9: 0 | R9: Carte de crédit | T9: 0 | V9: Autre | X9: 0
B10: Autres revenus | D10: 0 | F10: Abonnement annuel Amazon | H10: 0 | J10: Gaz | L10: 0 | N10: Voiture | P10: 0 | R10: Carte de crédit | T10: 0 | V10: Autre | X10: 0
B11: Autres revenus | D11: 0 | F11: Autre | H11: 0 | J11: Eau | L11: 0 | N11: Autre | P11: 0 | R11: Autre | T11: 0 | V11: Autre | X11: 0
B12: Autres revenus | D12: 0 | F12: Autre | H12: 0 | J12: Internet | L12: 0 | N12: Autre | P12: 0 | R12: Autre | T12: 0 | V12: Autre | X12: 0
B13: Autres revenus | D13: 0 | F13: Autre | H13: 0 | J13: Ordures ménagères | L13: 0 | N13: Autre | P13: 0 | R13: Autre | T13: 0 | V13: Autre | X13: 0
B14: Total | D14: =SUBTOTAL(109,Revenu32[Colonne2]) -> 1452.5 | F14: Autre | H14: 0 | J14: Entretien ou réparations | L14: 0 | N14: Autre | P14: 0 | R14: Autre | T14: 0 | V14: Total | X14: =SUBTOTAL(109,Impôts36[Colonne2]) -> 0
F15: Autre | H15: 0 | J15: Copropriété | L15: 0 | N15: Autre | P15: 0 | R15: Autre | T15: 0
F16: Total | H16: =SUBTOTAL(109,Reste_à_vivre37[Colonne2]) -> 1452.5 | J16: Autre | L16: 0 | N16: Total | P16: =SUBTOTAL(109,Assurance34[Colonne2]) -> 0 | R16: Total | T16: =SUBTOTAL(109,Emprunt35[Colonne2]) -> 0
J17: Autre | L17: 0
J18: Autre | L18: 0
J19: Autre | L19: 0
J20: Autre | L20: 0
J21: Total | L21: =SUBTOTAL(109,Logement33[Colonne2]) -> 0
B24: Restant total | F24: =Reste_à_vivre37[[#Totals],[Colonne2]]-(SUM(Dépense_alimentation38[[#Totals],[Somme]],Dépense_animaux39[[#Totals],[Somme]],Dépense_transport40[[#Totals],[Somme]],Dépense_soins_personnels41[[#Totals],[Somme]],Dépense_loisirs42[[#Totals],[Somme]],Dépense_epargne_investissement43[[#Totals],[Somme]],Dépense_juridique44[[#Totals],[Somme]])) -> 1452.5
B28: LISTE DES DEPENSES
B30: Alimentation | F30: Animaux | J30: Transport | N30: Soins / personnels | R30: Loisirs | V30: Epargne/investissement | Z30: Juridique
B32: Type | C32: Date | D32: Somme | F32: Type | G32: Date | H32: Somme | J32: Type | K32: Date | L32: Somme | N32: Type | O32: Date | P32: Somme | R32: Type | S32: Date | T32: Somme | V32: Type | W32: Date | X32: Somme | Z32: Type | AA32: Date | AB32: Somme
D33: 0 | H33: 0 | L33: 0 | P33: 0 | T33: 0 | X33: 0 | AB33: 0
D34: 0 | H34: 0 | L34: 0 | P34: 0 | T34: 0 | X34: 0 | AB34: 0
D35: 0 | H35: 0 | L35: 0 | P35: 0 | T35: 0 | X35: 0 | AB35: 0
D36: 0 | H36: 0 | L36: 0 | P36: 0 | T36: 0 | X36: 0 | AB36: 0
D37: 0 | H37: 0 | L37: 0 | P37: 0 | T37: 0 | X37: 0 | AB37: 0
D38: 0 | H38: 0 | L38: 0 | P38: 0 | T38: 0 | X38: 0 | AB38: 0
D39: 0 | H39: 0 | L39: 0 | P39: 0 | T39: 0 | X39: 0 | AB39: 0
D40: 0 | H40: 0 | L40: 0 | P40: 0 | T40: 0 | X40: 0 | AB40: 0
D41: 0 | H41: 0 | L41: 0 | P41: 0 | T41: 0 | X41: 0 | AB41: 0
D42: 0 | H42: 0 | L42: 0 | P42: 0 | T42: 0 | X42: 0 | AB42: 0
D43: 0 | H43: 0 | L43: 0 | P43: 0 | T43: 0 | X43: 0 | AB43: 0
D44: 0 | H44: 0 | L44: 0 | P44: 0 | T44: 0 | X44: 0 | AB44: 0
D45: 0 | H45: 0 | L45: 0 | P45: 0 | T45: 0 | X45: 0 | AB45: 0
D46: 0 | H46: 0 | L46: 0 | P46: 0 | T46: 0 | X46: 0 | AB46: 0
D47: 0 | H47: 0 | L47: 0 | P47: 0 | T47: 0 | X47: 0 | AB47: 0
D48: 0 | H48: 0 | L48: 0 | P48: 0 | T48: 0 | X48: 0 | AB48: 0
D49: 0 | H49: 0 | L49: 0 | P49: 0 | T49: 0 | X49: 0 | AB49: 0
D50: 0 | H50: 0 | L50: 0 | P50: 0 | T50: 0 | X50: 0 | AB50: 0
D51: 0 | H51: 0 | L51: 0 | P51: 0 | T51: 0 | X51: 0 | AB51: 0
D52: 0 | H52: 0 | L52: 0 | P52: 0 | T52: 0 | X52: 0 | AB52: 0
D53: 0 | H53: 0 | L53: 0 | P53: 0 | T53: 0 | X53: 0 | AB53: 0
D54: 0 | H54: 0 | L54: 0 | P54: 0 | T54: 0 | X54: 0 | AB54: 0
D55: 0 | H55: 0 | L55: 0 | P55: 0 | T55: 0 | X55: 0 | AB55: 0
D56: 0 | H56: 0 | L56: 0 | P56: 0 | T56: 0 | X56: 0 | AB56: 0
D57: 0 | H57: 0 | L57: 0 | P57: 0 | T57: 0 | X57: 0 | AB57: 0
D58: 0 | H58: 0 | L58: 0 | P58: 0 | T58: 0 | X58: 0 | AB58: 0
D59: 0 | H59: 0 | L59: 0 | P59: 0 | T59: 0 | X59: 0 | AB59: 0
D60: 0 | H60: 0 | L60: 0 | P60: 0 | T60: 0 | X60: 0 | AB60: 0
D61: 0 | H61: 0 | L61: 0 | P61: 0 | T61: 0 | X61: 0 | AB61: 0
B62: Total | D62: =SUBTOTAL(109,Dépense_alimentation38[Somme]) -> 0 | F62: Total | H62: =SUBTOTAL(109,Dépense_animaux39[Somme]) -> 0 | J62: Total | L62: =SUBTOTAL(109,Dépense_transport40[Somme]) -> 0 | N62: Total | P62: =SUBTOTAL(109,Dépense_soins_personnels41[Somme]) -> 0 | R62: Total | T62: =SUBTOTAL(109,Dépense_loisirs42[Somme]) -> 0 | V62: Total | X62: =SUBTOTAL(109,Dépense_epargne_investissement43[Somme]) -> 0 | Z62: Total | AB62: =SUBTOTAL(109,Dépense_juridique44[Somme]) -> 0

Sheet Mars (hidden)
B2: CREDIT | J2: DEBITS MENSUEL
B4: Revenu | F4: Reste à vivre | J4: Logement | N4: Assurance | R4: Emprunt | V4: Impôt
B6: Revenu mensuel | D6: 1000 | F6: Restant après débit mensuel | H6: =Revenu3245[[#Totals],[Colonne2]]-(SUM(Logement3346[[#Totals],[Colonne2]],Assurance3447[[#Totals],[Colonne2]],Emprunt3548[[#Totals],[Colonne2]],Impôts3649[[#Totals],[Colonne2]])) -> 2452.5 | J6: Emprunt ou loyer N°1 | L6: 0 | N6: Maison | P6: 0 | R6: Personnels | T6: 0 | V6: Locaux | X6: 0
B7: Restant mois précédent | D7: =Fév.!F24 -> 1452.5 | F7: Frais annuel assurance voiture | H7: 0 | J7: Emprunt ou loyer N°2 | L7: 0 | N7: Santé | P7: 0 | R7: Étudiants | T7: 0 | V7: Foncier | X7: 0
B8: Remboursement frais bancaire | D8: 0 | F8: Frais annuel assurance vie | H8: 0 | J8: Téléphone | L8: 0 | N8: Vie | P8: 0 | R8: Carte de crédit | T8: 0 | V8: Habitation | X8: 0
B9: Autres revenus | D9: 0 | F9: Frais annuel assurance maison | H9: 0 | J9: Électricité | L9: 0 | N9: Mutuelle | P9: 0 | R9: Carte de crédit | T9: 0 | V9: Autre | X9: 0
B10: Autres revenus | D10: 0 | F10: Abonnement annuel Amazon | H10: 0 | J10: Gaz | L10: 0 | N10: Voiture | P10: 0 | R10: Carte de crédit | T10: 0 | V10: Autre | X10: 0
B11: Autres revenus | D11: 0 | F11: Autre | H11: 0 | J11: Eau | L11: 0 | N11: Autre | P11: 0 | R11: Autre | T11: 0 | V11: Autre | X11: 0
B12: Autres revenus | D12: 0 | F12: Autre | H12: 0 | J12: Internet | L12: 0 | N12: Autre | P12: 0 | R12: Autre | T12: 0 | V12: Autre | X12: 0
B13: Autres revenus | D13: 0 | F13: Autre | H13: 0 | J13: Ordures ménagères | L13: 0 | N13: Autre | P13: 0 | R13: Autre | T13: 0 | V13: Autre | X13: 0
B14: Total | D14: =SUBTOTAL(109,Revenu3245[Colonne2]) -> 2452.5 | F14: Autre | H14: 0 | J14: Entretien ou réparations | L14: 0 | N14: Autre | P14: 0 | R14: Autre | T14: 0 | V14: Total | X14: =SUBTOTAL(109,Impôts3649[Colonne2]) -> 0
F15: Autre | H15: 0 | J15: Copropriété | L15: 0 | N15: Autre | P15: 0 | R15: Autre | T15: 0
F16: Total | H16: =SUBTOTAL(109,Reste_à_vivre3750[Colonne2]) -> 2452.5 | J16: Autre | L16: 0 | N16: Total | P16: =SUBTOTAL(109,Assurance3447[Colonne2]) -> 0 | R16: Total | T16: =SUBTOTAL(109,Emprunt3548[Colonne2]) -> 0
J17: Autre | L17: 0
J18: Autre | L18: 0
J19: Autre | L19: 0
J20: Autre | L20: 0
J21: Total | L21: =SUBTOTAL(109,Logement3346[Colonne2]) -> 0
B24: Restant total | F24: =Reste_à_vivre3750[[#Totals],[Colonne2]]-(SUM(Dépense_alimentation3851[[#Totals],[Somme]],Dépense_animaux3952[[#Totals],[Somme]],Dépense_transport4053[[#Totals],[Somme]],Dépense_soins_personnels4154[[#Totals],[Somme]],Dépense_loisirs4255[[#Totals],[Somme]],Dépense_epargne_investissement4356[[#Totals],[Somme]],Dépense_juridique4457[[#Totals],[Somme]])) -> 2452.5
B28: LISTE DES DEPENSES
B30: Alimentation | F30: Animaux | J30: Transport | N30: Soins / personnels | R30: Loisirs | V30: Epargne/investissement | Z30: Juridique
B32: Type | C32: Date | D32: Somme | F32: Type | G32: Date | H32: Somme | J32: Type | K32: Date | L32: Somme | N32: Type | O32: Date | P32: Somme | R32: Type | S32: Date | T32: Somme | V32: Type | W32: Date | X32: Somme | Z32: Type | AA32: Date | AB32: Somme
D33: 0 | H33: 0 | L33: 0 | P33: 0 | T33: 0 | X33: 0 | AB33: 0
D34: 0 | H34: 0 | L34: 0 | P34: 0 | T34: 0 | X34: 0 | AB34: 0
D35: 0 | H35: 0 | L35: 0 | P35: 0 | T35: 0 | X35: 0 | AB35: 0
D36: 0 | H36: 0 | L36: 0 | P36: 0 | T36: 0 | X36: 0 | AB36: 0
D37: 0 | H37: 0 | L37: 0 | P37: 0 | T37: 0 | X37: 0 | AB37: 0
D38: 0 | H38: 0 | L38: 0 | P38: 0 | T38: 0 | X38: 0 | AB38: 0
D39: 0 | H39: 0 | L39: 0 | P39: 0 | T39: 0 | X39: 0 | AB39: 0
D40: 0 | H40: 0 | L40: 0 | P40: 0 | T40: 0 | X40: 0 | AB40: 0
D41: 0 | H41: 0 | L41: 0 | P41: 0 | T41: 0 | X41: 0 | AB41: 0
D42: 0 | H42: 0 | L42: 0 | P42: 0 | T42: 0 | X42: 0 | AB42: 0
D43: 0 | H43: 0 | L43: 0 | P43: 0 | T43: 0 | X43: 0 | AB43: 0
D44: 0 | H44: 0 | L44: 0 | P44: 0 | T44: 0 | X44: 0 | AB44: 0
D45: 0 | H45: 0 | L45: 0 | P45: 0 | T45: 0 | X45: 0 | AB45: 0
D46: 0 | H46: 0 | L46: 0 | P46: 0 | T46: 0 | X46: 0 | AB46: 0
D47: 0 | H47: 0 | L47: 0 | P47: 0 | T47: 0 | X47: 0 | AB47: 0
D48: 0 | H48: 0 | L48: 0 | P48: 0 | T48: 0 | X48: 0 | AB48: 0
D49: 0 | H49: 0 | L49: 0 | P49: 0 | T49: 0 | X49: 0 | AB49: 0
D50: 0 | H50: 0 | L50: 0 | P50: 0 | T50: 0 | X50: 0 | AB50: 0
D51: 0 | H51: 0 | L51: 0 | P51: 0 | T51: 0 | X51: 0 | AB51: 0
D52: 0 | H52: 0 | L52: 0 | P52: 0 | T52: 0 | X52: 0 | AB52: 0
D53: 0 | H53: 0 | L53: 0 | P53: 0 | T53: 0 | X53: 0 | AB53: 0
D54: 0 | H54: 0 | L54: 0 | P54: 0 | T54: 0 | X54: 0 | AB54: 0
D55: 0 | H55: 0 | L55: 0 | P55: 0 | T55: 0 | X55: 0 | AB55: 0
D56: 0 | H56: 0 | L56: 0 | P56: 0 | T56: 0 | X56: 0 | AB56: 0
D57: 0 | H57: 0 | L57: 0 | P57: 0 | T57: 0 | X57: 0 | AB57: 0
D58: 0 | H58: 0 | L58: 0 | P58: 0 | T58: 0 | X58: 0 | AB58: 0
D59: 0 | H59: 0 | L59: 0 | P59: 0 | T59: 0 | X59: 0 | AB59: 0
D60: 0 | H60: 0 | L60: 0 | P60: 0 | T60: 0 | X60: 0 | AB60: 0
D61: 0 | H61: 0 | L61: 0 | P61: 0 | T61: 0 | X61: 0 | AB61: 0
B62: Total | D62: =SUBTOTAL(109,Dépense_alimentation3851[Somme]) -> 0 | F62: Total | H62: =SUBTOTAL(109,Dépense_animaux3952[Somme]) -> 0 | J62: Total | L62: =SUBTOTAL(109,Dépense_transport4053[Somme]) -> 0 | N62: Total | P62: =SUBTOTAL(109,Dépense_soins_personnels4154[Somme]) -> 0 | R62: Total | T62: =SUBTOTAL(109,Dépense_loisirs4255[Somme]) -> 0 | V62: Total | X62: =SUBTOTAL(109,Dépense_epargne_investissement4356[Somme]) -> 0 | Z62: Total | AB62: =SUBTOTAL(109,Dépense_juridique4457[Somme]) -> 0

Sheet Avr. (hidden)
B2: CREDIT | J2: DEBITS MENSUEL
B4: Revenu | F4: Reste à vivre | J4: Logement | N4: Assurance | R4: Emprunt | V4: Impôt
B6: Revenu mensuel | D6: 1000 | F6: Restant après débit mensuel | H6: =Revenu324558[[#Totals],[Colonne2]]-(SUM(Logement334659[[#Totals],[Colonne2]],Assurance344760[[#Totals],[Colonne2]],Emprunt354861[[#Totals],[Colonne2]],Impôts364962[[#Totals],[Colonne2]])) -> 3452.5 | J6: Emprunt ou loyer N°1 | L6: 0 | N6: Maison | P6: 0 | R6: Personnels | T6: 0 | V6: Locaux | X6: 0
B7: Restant mois précédent | D7: =Mars!F24 -> 2452.5 | F7: Frais annuel assurance voiture | H7: 0 | J7: Emprunt ou loyer N°2 | L7: 0 | N7: Santé | P7: 0 | R7: Étudiants | T7: 0 | V7: Foncier | X7: 0
B8: Remboursement frais bancaire | D8: 0 | F8: Frais annuel assurance vie | H8: 0 | J8: Téléphone | L8: 0 | N8: Vie | P8: 0 | R8: Carte de crédit | T8: 0 | V8: Habitation | X8: 0
B9: Autres revenus | D9: 0 | F9: Frais annuel assurance maison | H9: 0 | J9: Électricité | L9: 0 | N9: Mutuelle | P9: 0 | R9: Carte de crédit | T9: 0 | V9: Autre | X9: 0
B10: Autres revenus | D10: 0 | F10: Abonnement annuel Amazon | H10: 0 | J10: Gaz | L10: 0 | N10: Voiture | P10: 0 | R10: Carte de crédit | T10: 0 | V10: Autre | X10: 0
B11: Autres revenus | D11: 0 | F11: Autre | H11: 0 | J11: Eau | L11: 0 | N11: Autre | P11: 0 | R11: Autre | T11: 0 | V11: Autre | X11: 0
B12: Autres revenus | D12: 0 | F12: Autre | H12: 0 | J12: Internet | L12: 0 | N12: Autre | P12: 0 | R12: Autre | T12: 0 | V12: Autre | X12: 0
B13: Autres revenus | D13: 0 | F13: Autre | H13: 0 | J13: Ordures ménagères | L13: 0 | N13: Autre | P13: 0 | R13: Autre | T13: 0 | V13: Autre | X13: 0
B14: Total | D14: =SUBTOTAL(109,Revenu324558[Colonne2]) -> 3452.5 | F14: Autre | H14: 0 | J14: Entretien ou réparations | L14: 0 | N14: Autre | P14: 0 | R14: Autre | T14: 0 | V14: Total | X14: =SUBTOTAL(109,Impôts364962[Colonne2]) -> 0
F15: Autre | H15: 0 | J15: Copropriété | L15: 0 | N15: Autre | P15: 0 | R15: Autre | T15: 0
F16: Total | H16: =SUBTOTAL(109,Reste_à_vivre375063[Colonne2]) -> 3452.5 | J16: Autre | L16: 0 | N16: Total | P16: =SUBTOTAL(109,Assurance344760[Colonne2]) -> 0 | R16: Total | T16: =SUBTOTAL(109,Emprunt354861[Colonne2]) -> 0
J17: Autre | L17: 0
J18: Autre | L18: 0
J19: Autre | L19: 0
J20: Autre | L20: 0
J21: Total | L21: =SUBTOTAL(109,Logement334659[Colonne2]) -> 0
B24: Restant total | F24: =Reste_à_vivre375063[[#Totals],[Colonne2]]-(SUM(Dépense_alimentation385164[[#Totals],[Somme]],Dépense_animaux395265[[#Totals],[Somme]],Dépense_transport405366[[#Totals],[Somme]],Dépense_soins_personnels415467[[#Totals],[Somme]],Dépense_loisirs425568[[#Totals],[Somme]],Dépense_epargne_investissement435669[[#Totals],[Somme]],Dépense_juridique445770[[#Totals],[Somme]])) -> 3452.5
B28: LISTE DES DEPENSES
B30: Alimentation | F30: Animaux | J30: Transport | N30: Soins / personnels | R30: Loisirs | V30: Epargne/investissement | Z30: Juridique
B32: Type | C32: Date | D32: Somme | F32: Type | G32: Date | H32: Somme | J32: Type | K32: Date | L32: Somme | N32: Type | O32: Date | P32: Somme | R32: Type | S32: Date | T32: Somme | V32: Type | W32: Date | X32: Somme | Z32: Type | AA32: Date | AB32: Somme
D33: 0 | H33: 0 | L33: 0 | P33: 0 | T33: 0 | X33: 0 | AB33: 0
D34: 0 | H34: 0 | L34: 0 | P34: 0 | T34: 0 | X34: 0 | AB34: 0
D35: 0 | H35: 0 | L35: 0 | P35: 0 | T35: 0 | X35: 0 | AB35: 0
D36: 0 | H36: 0 | L36: 0 | P36: 0 | T36: 0 | X36: 0 | AB36: 0
D37: 0 | H37: 0 | L37: 0 | P37: 0 | T37: 0 | X37: 0 | AB37: 0
D38: 0 | H38: 0 | L38: 0 | P38: 0 | T38: 0 | X38: 0 | AB38: 0
D39: 0 | H39: 0 | L39: 0 | P39: 0 | T39: 0 | X39: 0 | AB39: 0
D40: 0 | H40: 0 | L40: 0 | P40: 0 | T40: 0 | X40: 0 | AB40: 0
D41: 0 | H41: 0 | L41: 0 | P41: 0 | T41: 0 | X41: 0 | AB41: 0
D42: 0 | H42: 0 | L42: 0 | P42: 0 | T42: 0 | X42: 0 | AB42: 0
D43: 0 | H43: 0 | L43: 0 | P43: 0 | T43: 0 | X43: 0 | AB43: 0
D44: 0 | H44: 0 | L44: 0 | P44: 0 | T44: 0 | X44: 0 | AB44: 0
D45: 0 | H45: 0 | L45: 0 | P45: 0 | T45: 0 | X45: 0 | AB45: 0
D46: 0 | H46: 0 | L46: 0 | P46: 0 | T46: 0 | X46: 0 | AB46: 0
D47: 0 | H47: 0 | L47: 0 | P47: 0 | T47: 0 | X47: 0 | AB47: 0
D48: 0 | H48: 0 | L48: 0 | P48: 0 | T48: 0 | X48: 0 | AB48: 0
D49: 0 | H49: 0 | L49: 0 | P49: 0 | T49: 0 | X49: 0 | AB49: 0
D50: 0 | H50: 0 | L50: 0 | P50: 0 | T50: 0 | X50: 0 | AB50: 0
D51: 0 | H51: 0 | L51: 0 | P51: 0 | T51: 0 | X51: 0 | AB51: 0
D52: 0 | H52: 0 | L52: 0 | P52: 0 | T52: 0 | X52: 0 | AB52: 0
D53: 0 | H53: 0 | L53: 0 | P53: 0 | T53: 0 | X53: 0 | AB53: 0
D54: 0 | H54: 0 | L54: 0 | P54: 0 | T54: 0 | X54: 0 | AB54: 0
D55: 0 | H55: 0 | L55: 0 | P55: 0 | T55: 0 | X55: 0 | AB55: 0
D56: 0 | H56: 0 | L56: 0 | P56: 0 | T56: 0 | X56: 0 | AB56: 0
D57: 0 | H57: 0 | L57: 0 | P57: 0 | T57: 0 | X57: 0 | AB57: 0
D58: 0 | H58: 0 | L58: 0 | P58: 0 | T58: 0 | X58: 0 | AB58: 0
D59: 0 | H59: 0 | L59: 0 | P59: 0 | T59: 0 | X59: 0 | AB59: 0
D60: 0 | H60: 0 | L60: 0 | P60: 0 | T60: 0 | X60: 0 | AB60: 0
D61: 0 | H61: 0 | L61: 0 | P61: 0 | T61: 0 | X61: 0 | AB61: 0
B62: Total | D62: =SUBTOTAL(109,Dépense_alimentation385164[Somme]) -> 0 | F62: Total | H62: =SUBTOTAL(109,Dépense_animaux395265[Somme]) -> 0 | J62: Total | L62: =SUBTOTAL(109,Dépense_transport405366[Somme]) -> 0 | N62: Total | P62: =SUBTOTAL(109,Dépense_soins_personnels415467[Somme]) -> 0 | R62: Total | T62: =SUBTOTAL(109,Dépense_loisirs425568[Somme]) -> 0 | V62: Total | X62: =SUBTOTAL(109,Dépense_epargne_investissement435669[Somme]) -> 0 | Z62: Total | AB62: =SUBTOTAL(109,Dépense_juridique445770[Somme]) -> 0

Sheet Mai (hidden)
B2: CREDIT | J2: DEBITS MENSUEL
B4: Revenu | F4: Reste à vivre | J4: Logement | N4: Assurance | R4: Emprunt | V4: Impôt
B6: Revenu mensuel | D6: 1000 | F6: Restant après débit mensuel | H6: =Revenu324571[[#Totals],[Colonne2]]-(SUM(Logement334672[[#Totals],[Colonne2]],Assurance344773[[#Totals],[Colonne2]],Emprunt354874[[#Totals],[Colonne2]],Impôts364975[[#Totals],[Colonne2]])) -> 4452.5 | J6: Emprunt ou loyer N°1 | L6: 0 | N6: Maison | P6: 0 | R6: Personnels | T6: 0 | V6: Locaux | X6: 0
B7: Restant mois précédent | D7: =Avr.!F24 -> 3452.5 | F7: Frais annuel assurance voiture | H7: 0 | J7: Emprunt ou loyer N°2 | L7: 0 | N7: Santé | P7: 0 | R7: Étudiants | T7: 0 | V7: Foncier | X7: 0
B8: Remboursement frais bancaire | D8: 0 | F8: Frais annuel assurance vie | H8: 0 | J8: Téléphone | L8: 0 | N8: Vie | P8: 0 | R8: Carte de crédit | T8: 0 | V8: Habitation | X8: 0
B9: Autres revenus | D9: 0 | F9: Frais annuel assurance maison | H9: 0 | J9: Électricité | L9: 0 | N9: Mutuelle | P9: 0 | R9: Carte de crédit | T9: 0 | V9: Autre | X9: 0
B10: Autres revenus | D10: 0 | F10: Abonnement annuel Amazon | H10: 0 | J10: Gaz | L10: 0 | N10: Voiture | P10: 0 | R10: Carte de crédit | T10: 0 | V10: Autre | X10: 0
B11: Autres revenus | D11: 0 | F11: Autre | H11: 0 | J11: Eau | L11: 0 | N11: Autre | P11: 0 | R11: Autre | T11: 0 | V11: Autre | X11: 0
B12: Autres revenus | D12: 0 | F12: Autre | H12: 0 | J12: Internet | L12: 0 | N12: Autre | P12: 0 | R12: Autre | T12: 0 | V12: Autre | X12: 0
B13: Autres revenus | D13: 0 | F13: Autre | H13: 0 | J13: Ordures ménagères | L13: 0 | N13: Autre | P13: 0 | R13: Autre | T13: 0 | V13: Autre | X13: 0
B14: Total | D14: =SUBTOTAL(109,Revenu324571[Colonne2]) -> 4452.5 | F14: Autre | H14: 0 | J14: Entretien ou réparations | L14: 0 | N14: Autre | P14: 0 | R14: Autre | T14: 0 | V14: Total | X14: =SUBTOTAL(109,Impôts364975[Colonne2]) -> 0
F15: Autre | H15: 0 | J15: Copropriété | L15: 0 | N15: Autre | P15: 0 | R15: Autre | T15: 0
F16: Total | H16: =SUBTOTAL(109,Reste_à_vivre375076[Colonne2]) -> 4452.5 | J16: Autre | L16: 0 | N16: Total | P16: =SUBTOTAL(109,Assurance344773[Colonne2]) -> 0 | R16: Total | T16: =SUBTOTAL(109,Emprunt354874[Colonne2]) -> 0
J17: Autre | L17: 0
J18: Autre | L18: 0
J19: Autre | L19: 0
J20: Autre | L20: 0
J21: Total | L21: =SUBTOTAL(109,Logement334672[Colonne2]) -> 0
B24: Restant total | F24: =Reste_à_vivre375076[[#Totals],[Colonne2]]-(SUM(Dépense_alimentation385177[[#Totals],[Somme]],Dépense_animaux395278[[#Totals],[Somme]],Dépense_transport405379[[#Totals],[Somme]],Dépense_soins_personnels415480[[#Totals],[Somme]],Dépense_loisirs425581[[#Totals],[Somme]],Dépense_epargne_investissement435682[[#Totals],[Somme]],Dépense_juridique445783[[#Totals],[Somme]])) -> 4452.5
B28: LISTE DES DEPENSES
B30: Alimentation | F30: Animaux | J30: Transport | N30: Soins / personnels | R30: Loisirs | V30: Epargne/investissement | Z30: Juridique
B32: Type | C32: Date | D32: Somme | F32: Type | G32: Date | H32: Somme | J32: Type | K32: Date | L32: Somme | N32: Type | O32: Date | P32: Somme | R32: Type | S32: Date | T32: Somme | V32: Type | W32: Date | X32: Somme | Z32: Type | AA32: Date | AB32: Somme
D33: 0 | H33: 0 | L33: 0 | P33: 0 | T33: 0 | X33: 0 | AB33: 0
D34: 0 | H34: 0 | L34: 0 | P34: 0 | T34: 0 | X34: 0 | AB34: 0
D35: 0 | H35: 0 | L35: 0 | P35: 0 | T35: 0 | X35: 0 | AB35: 0
D36: 0 | H36: 0 | L36: 0 | P36: 0 | T36: 0 | X36: 0 | AB36: 0
D37: 0 | H37: 0 | L37: 0 | P37: 0 | T37: 0 | X37: 0 | AB37: 0
D38: 0 | H38: 0 | L38: 0 | P38: 0 | T38: 0 | X38: 0 | AB38: 0
D39: 0 | H39: 0 | L39: 0 | P39: 0 | T39: 0 | X39: 0 | AB39: 0
D40: 0 | H40: 0 | L40: 0 | P40: 0 | T40: 0 | X40: 0 | AB40: 0
D41: 0 | H41: 0 | L41: 0 | P41: 0 | T41: 0 | X41: 0 | AB41: 0
D42: 0 | H42: 0 | L42: 0 | P42: 0 | T42: 0 | X42: 0 | AB42: 0
D43: 0 | H43: 0 | L43: 0 | P43: 0 | T43: 0 | X43: 0 | AB43: 0
D44: 0 | H44: 0 | L44: 0 | P44: 0 | T44: 0 | X44: 0 | AB44: 0
D45: 0 | H45: 0 | L45: 0 | P45: 0 | T45: 0 | X45: 0 | AB45: 0
D46: 0 | H46: 0 | L46: 0 | P46: 0 | T46: 0 | X46: 0 | AB46: 0
D47: 0 | H47: 0 | L47: 0 | P47: 0 | T47: 0 | X47: 0 | AB47: 0
D48: 0 | H48: 0 | L48: 0 | P48: 0 | T48: 0 | X48: 0 | AB48: 0
D49: 0 | H49: 0 | L49: 0 | P49: 0 | T49: 0 | X49: 0 | AB49: 0
D50: 0 | H50: 0 | L50: 0 | P50: 0 | T50: 0 | X50: 0 | AB50: 0
D51: 0 | H51: 0 | L51: 0 | P51: 0 | T51: 0 | X51: 0 | AB51: 0
D52: 0 | H52: 0 | L52: 0 | P52: 0 | T52: 0 | X52: 0 | AB52: 0
D53: 0 | H53: 0 | L53: 0 | P53: 0 | T53: 0 | X53: 0 | AB53: 0
D54: 0 | H54: 0 | L54: 0 | P54: 0 | T54: 0 | X54: 0 | AB54: 0
D55: 0 | H55: 0 | L55: 0 | P55: 0 | T55: 0 | X55: 0 | AB55: 0
D56: 0 | H56: 0 | L56: 0 | P56: 0 | T56: 0 | X56: 0 | AB56: 0
D57: 0 | H57: 0 | L57: 0 | P57: 0 | T57: 0 | X57: 0 | AB57: 0
D58: 0 | H58: 0 | L58: 0 | P58: 0 | T58: 0 | X58: 0 | AB58: 0
D59: 0 | H59: 0 | L59: 0 | P59: 0 | T59: 0 | X59: 0 | AB59: 0
D60: 0 | H60: 0 | L60: 0 | P60: 0 | T60: 0 | X60: 0 | AB60: 0
D61: 0 | H61: 0 | L61: 0 | P61: 0 | T61: 0 | X61: 0 | AB61: 0
B62: Total | D62: =SUBTOTAL(109,Dépense_alimentation385177[Somme]) -> 0 | F62: Total | H62: =SUBTOTAL(109,Dépense_animaux395278[Somme]) -> 0 | J62: Total | L62: =SUBTOTAL(109,Dépense_transport405379[Somme]) -> 0 | N62: Total | P62: =SUBTOTAL(109,Dépense_soins_personnels415480[Somme]) -> 0 | R62: Total | T62: =SUBTOTAL(109,Dépense_loisirs425581[Somme]) -> 0 | V62: Total | X62: =SUBTOTAL(109,Dépense_epargne_investissement435682[Somme]) -> 0 | Z62: Total | AB62: =SUBTOTAL(109,Dépense_juridique445783[Somme]) -> 0

Sheet Juin (hidden)
B2: CREDIT | J2: DEBITS MENSUEL
B4: Revenu | F4: Reste à vivre | J4: Logement | N4: Assurance | R4: Emprunt | V4: Impôt
B6: Revenu mensuel | D6: 1000 | F6: Restant après débit mensuel | H6: =Revenu324584[[#Totals],[Colonne2]]-(SUM(Logement334685[[#Totals],[Colonne2]],Assurance344786[[#Totals],[Colonne2]],Emprunt354887[[#Totals],[Colonne2]],Impôts364988[[#Totals],[Colonne2]])) -> 5452.5 | J6: Emprunt ou loyer N°1 | L6: 0 | N6: Maison | P6: 0 | R6: Personnels | T6: 0 | V6: Locaux | X6: 0
B7: Restant mois précédent | D7: =Mai!F24 -> 4452.5 | F7: Frais annuel assurance voiture | H7: 0 | J7: Emprunt ou loyer N°2 | L7: 0 | N7: Santé | P7: 0 | R7: Étudiants | T7: 0 | V7: Foncier | X7: 0
B8: Remboursement frais bancaire | D8: 0 | F8: Frais annuel assurance vie | H8: 0 | J8: Téléphone | L8: 0 | N8: Vie | P8: 0 | R8: Carte de crédit | T8: 0 | V8: Habitation | X8: 0
B9: Autres revenus | D9: 0 | F9: Frais annuel assurance maison | H9: 0 | J9: Électricité | L9: 0 | N9: Mutuelle | P9: 0 | R9: Carte de crédit | T9: 0 | V9: Autre | X9: 0
B10: Autres revenus | D10: 0 | F10: Abonnement annuel Amazon | H10: 0 | J10: Gaz | L10: 0 | N10: Voiture | P10: 0 | R10: Carte de crédit | T10: 0 | V10: Autre | X10: 0
B11: Autres revenus | D11: 0 | F11: Autre | H11: 0 | J11: Eau | L11: 0 | N11: Autre | P11: 0 | R11: Autre | T11: 0 | V11: Autre | X11: 0
B12: Autres revenus | D12: 0 | F12: Autre | H12: 0 | J12: Internet | L12: 0 | N12: Autre | P12: 0 | R12: Autre | T12: 0 | V12: Autre | X12: 0
B13: Autres revenus | D13: 0 | F13: Autre | H13: 0 | J13: Ordures ménagères | L13: 0 | N13: Autre | P13: 0 | R13: Autre | T13: 0 | V13: Autre | X13: 0
B14: Total | D14: =SUBTOTAL(109,Revenu324584[Colonne2]) -> 5452.5 | F14: Autre | H14: 0 | J14: Entretien ou réparations | L14: 0 | N14: Autre | P14: 0 | R14: Autre | T14: 0 | V14: Total | X14: =SUBTOTAL(109,Impôts364988[Colonne2]) -> 0
F15: Autre | H15: 0 | J15: Copropriété | L15: 0 | N15: Autre | P15: 0 | R15: Autre | T15: 0
F16: Total | H16: =SUBTOTAL(109,Reste_à_vivre375089[Colonne2]) -> 5452.5 | J16: Autre | L16: 0 | N16: Total | P16: =SUBTOTAL(109,Assurance344786[Colonne2]) -> 0 | R16: Total | T16: =SUBTOTAL(109,Emprunt354887[Colonne2]) -> 0
J17: Autre | L17: 0
J18: Autre | L18: 0
J19: Autre | L19: 0
J20: Autre | L20: 0
J21: Total | L21: =SUBTOTAL(109,Logement334685[Colonne2]) -> 0
B24: Restant total | F24: =Reste_à_vivre375089[[#Totals],[Colonne2]]-(SUM(Dépense_alimentation385190[[#Totals],[Somme]],Dépense_animaux395291[[#Totals],[Somme]],Dépense_transport405392[[#Totals],[Somme]],Dépense_soins_personnels415493[[#Totals],[Somme]],Dépense_loisirs425594[[#Totals],[Somme]],Dépense_epargne_investissement435695[[#Totals],[Somme]],Dépense_juridique445796[[#Totals],[Somme]])) -> 5452.5
B28: LISTE DES DEPENSES
B30: Alimentation | F30: Animaux | J30: Transport | N30: Soins / personnels | R30: Loisirs | V30: Epargne/investissement | Z30: Juridique
B32: Type | C32: Date | D32: Somme | F32: Type | G32: Date | H32: Somme | J32: Type | K32: Date | L32: Somme | N32: Type | O32: Date | P32: Somme | R32: Type | S32: Date | T32: Somme | V32: Type | W32: Date | X32: Somme | Z32: Type | AA32: Date | AB32: Somme
D33: 0 | H33: 0 | L33: 0 | P33: 0 | T33: 0 | X33: 0 | AB33: 0
D34: 0 | H34: 0 | L34: 0 | P34: 0 | T34: 0 | X34: 0 | AB34: 0
D35: 0 | H35: 0 | L35: 0 | P35: 0 | T35: 0 | X35: 0 | AB35: 0
D36: 0 | H36: 0 | L36: 0 | P36: 0 | T36: 0 | X36: 0 | AB36: 0
D37: 0 | H37: 0 | L37: 0 | P37: 0 | T37: 0 | X37: 0 | AB37: 0
D38: 0 | H38: 0 | L38: 0 | P38: 0 | T38: 0 | X38: 0 | AB38: 0
D39: 0 | H39: 0 | L39: 0 | P39: 0 | T39: 0 | X39: 0 | AB39: 0
D40: 0 | H40: 0 | L40: 0 | P40: 0 | T40: 0 | X40: 0 | AB40: 0
D41: 0 | H41: 0 | L41: 0 | P41: 0 | T41: 0 | X41: 0 | AB41: 0
D42: 0 | H42: 0 | L42: 0 | P42: 0 | T42: 0 | X42: 0 | AB42: 0
D43: 0 | H43: 0 | L43: 0 | P43: 0 | T43: 0 | X43: 0 | AB43: 0
D44: 0 | H44: 0 | L44: 0 | P44: 0 | T44: 0 | X44: 0 | AB44: 0
D45: 0 | H45: 0 | L45: 0 | P45: 0 | T45: 0 | X45: 0 | AB45: 0
D46: 0 | H46: 0 | L46: 0 | P46: 0 | T46: 0 | X46: 0 | AB46: 0
D47: 0 | H47: 0 | L47: 0 | P47: 0 | T47: 0 | X47: 0 | AB47: 0
D48: 0 | H48: 0 | L48: 0 | P48: 0 | T48: 0 | X48: 0 | AB48: 0
D49: 0 | H49: 0 | L49: 0 | P49: 0 | T49: 0 | X49: 0 | AB49: 0
D50: 0 | H50: 0 | L50: 0 | P50: 0 | T50: 0 | X50: 0 | AB50: 0
D51: 0 | H51: 0 | L51: 0 | P51: 0 | T51: 0 | X51: 0 | AB51: 0
D52: 0 | H52: 0 | L52: 0 | P52: 0 | T52: 0 | X52: 0 | AB52: 0
D53: 0 | H53: 0 | L53: 0 | P53: 0 | T53: 0 | X53: 0 | AB53: 0
D54: 0 | H54: 0 | L54: 0 | P54: 0 | T54: 0 | X54: 0 | AB54: 0
D55: 0 | H55: 0 | L55: 0 | P55: 0 | T55: 0 | X55: 0 | AB55: 0
D56: 0 | H56: 0 | L56: 0 | P56: 0 | T56: 0 | X56: 0 | AB56: 0
D57: 0 | H57: 0 | L57: 0 | P57: 0 | T57: 0 | X57: 0 | AB57: 0
D58: 0 | H58: 0 | L58: 0 | P58: 0 | T58: 0 | X58: 0 | AB58: 0
D59: 0 | H59: 0 | L59: 0 | P59: 0 | T59: 0 | X59: 0 | AB59: 0
D60: 0 | H60: 0 | L60: 0 | P60: 0 | T60: 0 | X60: 0 | AB60: 0
D61: 0 | H61: 0 | L61: 0 | P61: 0 | T61: 0 | X61: 0 | AB61: 0
B62: Total | D62: =SUBTOTAL(109,Dépense_alimentation385190[Somme]) -> 0 | F62: Total | H62: =SUBTOTAL(109,Dépense_animaux395291[Somme]) -> 0 | J62: Total | L62: =SUBTOTAL(109,Dépense_transport405392[Somme]) -> 0 | N62: Total | P62: =SUBTOTAL(109,Dépense_soins_personnels415493[Somme]) -> 0 | R62: Total | T62: =SUBTOTAL(109,Dépense_loisirs425594[Somme]) -> 0 | V62: Total | X62: =SUBTOTAL(109,Dépense_epargne_investissement435695[Somme]) -> 0 | Z62: Total | AB62: =SUBTOTAL(109,Dépense_juridique445796[Somme]) -> 0

Sheet Juil. (hidden)
B2: CREDIT | J2: DEBITS MENSUEL
B4: Revenu | F4: Reste à vivre | J4: Logement | N4: Assurance | R4: Emprunt | V4: Impôt
B6: Revenu mensuel | D6: 1000 | F6: Restant après débit mensuel | H6: =Revenu324597[[#Totals],[Colonne2]]-(SUM(Logement334698[[#Totals],[Colonne2]],Assurance344799[[#Totals],[Colonne2]],Emprunt3548100[[#Totals],[Colonne2]],Impôts3649101[[#Totals],[Colonne2]])) -> 6452.5 | J6: Emprunt ou loyer N°1 | L6: 0 | N6: Maison | P6: 0 | R6: Personnels | T6: 0 | V6: Locaux | X6: 0
B7: Restant mois précédent | D7: =Juin!F24 -> 5452.5 | F7: Frais annuel assurance voiture | H7: 0 | J7: Emprunt ou loyer N°2 | L7: 0 | N7: Santé | P7: 0 | R7: Étudiants | T7: 0 | V7: Foncier | X7: 0
B8: Remboursement frais bancaire | D8: 0 | F8: Frais annuel assurance vie | H8: 0 | J8: Téléphone | L8: 0 | N8: Vie | P8: 0 | R8: Carte de crédit | T8: 0 | V8: Habitation | X8: 0
B9: Autres revenus | D9: 0 | F9: Frais annuel assurance maison | H9: 0 | J9: Électricité | L9: 0 | N9: Mutuelle | P9: 0 | R9: Carte de crédit | T9: 0 | V9: Autre | X9: 0
B10: Autres revenus | D10: 0 | F10: Abonnement annuel Amazon | H10: 0 | J10: Gaz | L10: 0 | N10: Voiture | P10: 0 | R10: Carte de crédit | T10: 0 | V10: Autre | X10: 0
B11: Autres revenus | D11: 0 | F11: Autre | H11: 0 | J11: Eau | L11: 0 | N11: Autre | P11: 0 | R11: Autre | T11: 0 | V11: Autre | X11: 0
B12: Autres revenus | D12: 0 | F12: Autre | H12: 0 | J12: Internet | L12: 0 | N12: Autre | P12: 0 | R12: Autre | T12: 0 | V12: Autre | X12: 0
B13: Autres revenus | D13: 0 | F13: Autre | H13: 0 | J13: Ordures ménagères | L13: 0 | N13: Autre | P13: 0 | R13: Autre | T13: 0 | V13: Autre | X13: 0
B14: Total | D14: =SUBTOTAL(109,Revenu324597[Colonne2]) -> 6452.5 | F14: Autre | H14: 0 | J14: Entretien ou réparations | L14: 0 | N14: Autre | P14: 0 | R14: Autre | T14: 0 | V14: Total | X14: =SUBTOTAL(109,Impôts3649101[Colonne2]) -> 0
F15: Autre | H15: 0 | J15: Copropriété | L15: 0 | N15: Autre | P15: 0 | R15: Autre | T15: 0
F16: Total | H16: =SUBTOTAL(109,Reste_à_vivre3750102[Colonne2]) -> 6452.5 | J16: Autre | L16: 0 | N16: Total | P16: =SUBTOTAL(109,Assurance344799[Colonne2]) -> 0 | R16: Total | T16: =SUBTOTAL(109,Emprunt3548100[Colonne2]) -> 0
J17: Autre | L17: 0
J18: Autre | L18: 0
J19: Autre | L19: 0
J20: Autre | L20: 0
J21: Total | L21: =SUBTOTAL(109,Logement334698[Colonne2]) -> 0
B24: Restant total | F24: =Reste_à_vivre3750102[[#Totals],[Colonne2]]-(SUM(Dépense_alimentation3851103[[#Totals],[Somme]],Dépense_animaux3952104[[#Totals],[Somme]],Dépense_transport4053105[[#Totals],[Somme]],Dépense_soins_personnels4154106[[#Totals],[Somme]],Dépense_loisirs4255107[[#Totals],[Somme]],Dépense_epargne_investissement4356108[[#Totals],[Somme]],Dépense_juridique4457109[[#Totals],[Somme]])) -> 6452.5
B28: LISTE DES DEPENSES
B30: Alimentation | F30: Animaux | J30: Transport | N30: Soins / personnels | R30: Loisirs | V30: Epargne/investissement | Z30: Juridique
B32: Type | C32: Date | D32: Somme | F32: Type | G32: Date | H32: Somme | J32: Type | K32: Date | L32: Somme | N32: Type | O32: Date | P32: Somme | R32: Type | S32: Date | T32: Somme | V32: Type | W32: Date | X32: Somme | Z32: Type | AA32: Date | AB32: Somme
D33: 0 | H33: 0 | L33: 0 | P33: 0 | T33: 0 | X33: 0 | AB33: 0
D34: 0 | H34: 0 | L34: 0 | P34: 0 | T34: 0 | X34: 0 | AB34: 0
D35: 0 | H35: 0 | L35: 0 | P35: 0 | T35: 0 | X35: 0 | AB35: 0
D36: 0 | H36: 0 | L36: 0 | P36: 0 | T36: 0 | X36: 0 | AB36: 0
D37: 0 | H37: 0 | L37: 0 | P37: 0 | T37: 0 | X37: 0 | AB37: 0
D38: 0 | H38: 0 | L38: 0 | P38: 0 | T38: 0 | X38: 0 | AB38: 0
D39: 0 | H39: 0 | L39: 0 | P39: 0 | T39: 0 | X39: 0 | AB39: 0
D40: 0 | H40: 0 | L40: 0 | P40: 0 | T40: 0 | X40: 0 | AB40: 0
D41: 0 | H41: 0 | L41: 0 | P41: 0 | T41: 0 | X41: 0 | AB41: 0
D42: 0 | H42: 0 | L42: 0 | P42: 0 | T42: 0 | X42: 0 | AB42: 0
D43: 0 | H43: 0 | L43: 0 | P43: 0 | T43: 0 | X43: 0 | AB43: 0
D44: 0 | H44: 0 | L44: 0 | P44: 0 | T44: 0 | X44: 0 | AB44: 0
D45: 0 | H45: 0 | L45: 0 | P45: 0 | T45: 0 | X45: 0 | AB45: 0
D46: 0 | H46: 0 | L46: 0 | P46: 0 | T46: 0 | X46: 0 | AB46: 0
D47: 0 | H47: 0 | L47: 0 | P47: 0 | T47: 0 | X47: 0 | AB47: 0
D48: 0 | H48: 0 | L48: 0 | P48: 0 | T48: 0 | X48: 0 | AB48: 0
D49: 0 | H49: 0 | L49: 0 | P49: 0 | T49: 0 | X49: 0 | AB49: 0
D50: 0 | H50: 0 | L50: 0 | P50: 0 | T50: 0 | X50: 0 | AB50: 0
D51: 0 | H51: 0 | L51: 0 | P51: 0 | T51: 0 | X51: 0 | AB51: 0
D52: 0 | H52: 0 | L52: 0 | P52: 0 | T52: 0 | X52: 0 | AB52: 0
B53: Total | D53: =SUBTOTAL(109,Dépense_alimentation3851103[Somme]) -> 0 | F53: Total | H53: =SUBTOTAL(109,Dépense_animaux3952104[Somme]) -> 0 | J53: Total | L53: =SUBTOTAL(109,Dépense_transport4053105[Somme]) -> 0 | N53: Total | P53: =SUBTOTAL(109,Dépense_soins_personnels4154106[Somme]) -> 0 | R53: Total | T53: =SUBTOTAL(109,Dépense_loisirs4255107[Somme]) -> 0 | V53: Total | X53: =SUBTOTAL(109,Dépense_epargne_investissement4356108[Somme]) -> 0 | Z53: Total | AB53: =SUBTOTAL(109,Dépense_juridique4457109[Somme]) -> 0

Sheet Août (hidden)
B2: CREDIT | J2: DEBITS MENSUEL
B4: Revenu | F4: Reste à vivre | J4: Logement | N4: Assurance | R4: Emprunt | V4: Impôt
B6: Revenu mensuel | D6: 1000 | F6: Restant après débit mensuel | H6: =Revenu3245110[[#Totals],[Colonne2]]-(SUM(Logement3346111[[#Totals],[Colonne2]],Assurance3447112[[#Totals],[Colonne2]],Emprunt3548113[[#Totals],[Colonne2]],Impôts3649114[[#Totals],[Colonne2]])) -> 7452.5 | J6: Emprunt ou loyer N°1 | L6: 0 | N6: Maison | P6: 0 | R6: Personnels | T6: 0 | V6: Locaux | X6: 0
B7: Restant mois précédent | D7: =Juil.!F24 -> 6452.5 | F7: Frais annuel assurance voiture | H7: 0 | J7: Emprunt ou loyer N°2 | L7: 0 | N7: Santé | P7: 0 | R7: Étudiants | T7: 0 | V7: Foncier | X7: 0
B8: Remboursement frais bancaire | D8: 0 | F8: Frais annuel assurance vie | H8: 0 | J8: Téléphone | L8: 0 | N8: Vie | P8: 0 | R8: Carte de crédit | T8: 0 | V8: Habitation | X8: 0
B9: Autres revenus | D9: 0 | F9: Frais annuel assurance maison | H9: 0 | J9: Électricité | L9: 0 | N9: Mutuelle | P9: 0 | R9: Carte de crédit | T9: 0 | V9: Autre | X9: 0
B10: Autres revenus | D10: 0 | F10: Abonnement annuel Amazon | H10: 0 | J10: Gaz | L10: 0 | N10: Voiture | P10: 0 | R10: Carte de crédit | T10: 0 | V10: Autre | X10: 0
B11: Autres revenus | D11: 0 | F11: Autre | H11: 0 | J11: Eau | L11: 0 | N11: Autre | P11: 0 | R11: Autre | T11: 0 | V11: Autre | X11: 0
B12: Autres revenus | D12: 0 | F12: Autre | H12: 0 | J12: Internet | L12: 0 | N12: Autre | P12: 0 | R12: Autre | T12: 0 | V12: Autre | X12: 0
B13: Autres revenus | D13: 0 | F13: Autre | H13: 0 | J13: Ordures ménagères | L13: 0 | N13: Autre | P13: 0 | R13: Autre | T13: 0 | V13: Autre | X13: 0
B14: Total | D14: =SUBTOTAL(109,Revenu3245110[Colonne2]) -> 7452.5 | F14: Autre | H14: 0 | J14: Entretien ou réparations | L14: 0 | N14: Autre | P14: 0 | R14: Autre | T14: 0 | V14: Total | X14: =SUBTOTAL(109,Impôts3649114[Colonne2]) -> 0
F15: Autre | H15: 0 | J15: Copropriété | L15: 0 | N15: Autre | P15: 0 | R15: Autre | T15: 0
F16: Total | H16: =SUBTOTAL(109,Reste_à_vivre3750115[Colonne2]) -> 7452.5 | J16: Autre | L16: 0 | N16: Total | P16: =SUBTOTAL(109,Assurance3447112[Colonne2]) -> 0 | R16: Total | T16: =SUBTOTAL(109,Emprunt3548113[Colonne2]) -> 0
J17: Autre | L17: 0
J18: Autre | L18: 0
J19: Autre | L19: 0
J20: Autre | L20: 0
J21: Total | L21: =SUBTOTAL(109,Logement3346111[Colonne2]) -> 0
B24: Restant total | F24: =Reste_à_vivre3750115[[#Totals],[Colonne2]]-(SUM(Dépense_alimentation3851116[[#Totals],[Somme]],Dépense_animaux3952117[[#Totals],[Somme]],Dépense_transport4053118[[#Totals],[Somme]],Dépense_soins_personnels4154119[[#Totals],[Somme]],Dépense_loisirs4255120[[#Totals],[Somme]],Dépense_epargne_investissement4356121[[#Totals],[Somme]],Dépense_juridique4457122[[#Totals],[Somme]])) -> 7452.5
B28: LISTE DES DEPENSES
B30: Alimentation | F30: Animaux | J30: Transport | N30: Soins / personnels | R30: Loisirs | V30: Epargne/investissement | Z30: Juridique
B32: Type | C32: Date | D32: Somme | F32: Type | G32: Date | H32: Somme | J32: Type | K32: Date | L32: Somme | N32: Type | O32: Date | P32: Somme | R32: Type | S32: Date | T32: Somme | V32: Type | W32: Date | X32: Somme | Z32: Type | AA32: Date | AB32: Somme
D33: 0 | H33: 0 | L33: 0 | P33: 0 | T33: 0 | X33: 0 | AB33: 0
D34: 0 | H34: 0 | L34: 0 | P34: 0 | T34: 0 | X34: 0 | AB34: 0
D35: 0 | H35: 0 | L35: 0 | P35: 0 | T35: 0 | X35: 0 | AB35: 0
D36: 0 | H36: 0 | L36: 0 | P36: 0 | T36: 0 | X36: 0 | AB36: 0
D37: 0 | H37: 0 | L37: 0 | P37: 0 | T37: 0 | X37: 0 | AB37: 0
D38: 0 | H38: 0 | L38: 0 | P38: 0 | T38: 0 | X38: 0 | AB38: 0
D39: 0 | H39: 0 | L39: 0 | P39: 0 | T39: 0 | X39: 0 | AB39: 0
D40: 0 | H40: 0 | L40: 0 | P40: 0 | T40: 0 | X40: 0 | AB40: 0
D41: 0 | H41: 0 | L41: 0 | P41: 0 | T41: 0 | X41: 0 | AB41: 0
D42: 0 | H42: 0 | L42: 0 | P42: 0 | T42: 0 | X42: 0 | AB42: 0
D43: 0 | H43: 0 | L43: 0 | P43: 0 | T43: 0 | X43: 0 | AB43: 0
D44: 0 | H44: 0 | L44: 0 | P44: 0 | T44: 0 | X44: 0 | AB44: 0
D45: 0 | H45: 0 | L45: 0 | P45: 0 | T45: 0 | X45: 0 | AB45: 0
D46: 0 | H46: 0 | L46: 0 | P46: 0 | T46: 0 | X46: 0 | AB46: 0
D47: 0 | H47: 0 | L47: 0 | P47: 0 | T47: 0 | X47: 0 | AB47: 0
D48: 0 | H48: 0 | L48: 0 | P48: 0 | T48: 0 | X48: 0 | AB48: 0
D49: 0 | H49: 0 | L49: 0 | P49: 0 | T49: 0 | X49: 0 | AB49: 0
D50: 0 | H50: 0 | L50: 0 | P50: 0 | T50: 0 | X50: 0 | AB50: 0
D51: 0 | H51: 0 | L51: 0 | P51: 0 | T51: 0 | X51: 0 | AB51: 0
D52: 0 | H52: 0 | L52: 0 | P52: 0 | T52: 0 | X52: 0 | AB52: 0
D53: 0 | H53: 0 | L53: 0 | P53: 0 | T53: 0 | X53: 0 | AB53: 0
D54: 0 | H54: 0 | L54: 0 | P54: 0 | T54: 0 | X54: 0 | AB54: 0
D55: 0 | H55: 0 | L55: 0 | P55: 0 | T55: 0 | X55: 0 | AB55: 0
D56: 0 | H56: 0 | L56: 0 | P56: 0 | T56: 0 | X56: 0 | AB56: 0
D57: 0 | H57: 0 | L57: 0 | P57: 0 | T57: 0 | X57: 0 | AB57: 0
D58: 0 | H58: 0 | L58: 0 | P58: 0 | T58: 0 | X58: 0 | AB58: 0
D59: 0 | H59: 0 | L59: 0 | P59: 0 | T59: 0 | X59: 0 | AB59: 0
D60: 0 | H60: 0 | L60: 0 | P60: 0 | T60: 0 | X60: 0 | AB60: 0
D61: 0 | H61: 0 | L61: 0 | P61: 0 | T61: 0 | X61: 0 | AB61: 0
B62: Total | D62: =SUBTOTAL(109,Dépense_alimentation3851116[Somme]) -> 0 | F62: Total | H62: =SUBTOTAL(109,Dépense_animaux3952117[Somme]) -> 0 | J62: Total | L62: =SUBTOTAL(109,Dépense_transport4053118[Somme]) -> 0 | N62: Total | P62: =SUBTOTAL(109,Dépense_soins_personnels4154119[Somme]) -> 0 | R62: Total | T62: =SUBTOTAL(109,Dépense_loisirs4255120[Somme]) -> 0 | V62: Total | X62: =SUBTOTAL(109,Dépense_epargne_investissement4356121[Somme]) -> 0 | Z62: Total | AB62: =SUBTOTAL(109,Dépense_juridique4457122[Somme]) -> 0

Sheet Sept. (hidden)
B2: CREDIT | J2: DEBITS MENSUEL
B4: Revenu | F4: Reste à vivre | J4: Logement | N4: Assurance | R4: Emprunt | V4: Impôt
B6: Revenu mensuel | D6: 1000 | F6: Restant après débit mensuel | H6: =Revenu3245123[[#Totals],[Colonne2]]-(SUM(Logement3346124[[#Totals],[Colonne2]],Assurance3447125[[#Totals],[Colonne2]],Emprunt3548126[[#Totals],[Colonne2]],Impôts3649127[[#Totals],[Colonne2]])) -> 8452.5 | J6: Emprunt ou loyer N°1 | L6: 0 | N6: Maison | P6: 0 | R6: Personnels | T6: 0 | V6: Locaux | X6: 0
B7: Restant mois précédent | D7: =Août!F24 -> 7452.5 | F7: Frais annuel assurance voiture | H7: 0 | J7: Emprunt ou loyer N°2 | L7: 0 | N7: Santé | P7: 0 | R7: Étudiants | T7: 0 | V7: Foncier | X7: 0
B8: Remboursement frais bancaire | D8: 0 | F8: Frais annuel assurance vie | H8: 0 | J8: Téléphone | L8: 0 | N8: Vie | P8: 0 | R8: Carte de crédit | T8: 0 | V8: Habitation | X8: 0
B9: Autres revenus | D9: 0 | F9: Frais annuel assurance maison | H9: 0 | J9: Électricité | L9: 0 | N9: Mutuelle | P9: 0 | R9: Carte de crédit | T9: 0 | V9: Autre | X9: 0
B10: Autres revenus | D10: 0 | F10: Abonnement annuel Amazon | H10: 0 | J10: Gaz | L10: 0 | N10: Voiture | P10: 0 | R10: Carte de crédit | T10: 0 | V10: Autre | X10: 0
B11: Autres revenus | D11: 0 | F11: Autre | H11: 0 | J11: Eau | L11: 0 | N11: Autre | P11: 0 | R11: Autre | T11: 0 | V11: Autre | X11: 0
B12: Autres revenus | D12: 0 | F12: Autre | H12: 0 | J12: Internet | L12: 0 | N12: Autre | P12: 0 | R12: Autre | T12: 0 | V12: Autre | X12: 0
B13: Autres revenus | D13: 0 | F13: Autre | H13: 0 | J13: Ordures ménagères | L13: 0 | N13: Autre | P13: 0 | R13: Autre | T13: 0 | V13: Autre | X13: 0
B14: Total | D14: =SUBTOTAL(109,Revenu3245123[Colonne2]) -> 8452.5 | F14: Autre | H14: 0 | J14: Entretien ou réparations | L14: 0 | N14: Autre | P14: 0 | R14: Autre | T14: 0 | V14: Total | X14: =SUBTOTAL(109,Impôts3649127[Colonne2]) -> 0
F15: Autre | H15: 0 | J15: Copropriété | L15: 0 | N15: Autre | P15: 0 | R15: Autre | T15: 0
F16: Total | H16: =SUBTOTAL(109,Reste_à_vivre3750128[Colonne2]) -> 8452.5 | J16: Autre | L16: 0 | N16: Total | P16: =SUBTOTAL(109,Assurance3447125[Colonne2]) -> 0 | R16: Total | T16: =SUBTOTAL(109,Emprunt3548126[Colonne2]) -> 0
J17: Autre | L17: 0
J18: Autre | L18: 0
J19: Autre | L19: 0
J20: Autre | L20: 0
J21: Total | L21: =SUBTOTAL(109,Logement3346124[Colonne2]) -> 0
B24: Restant total | F24: =Reste_à_vivre3750128[[#Totals],[Colonne2]]-(SUM(Dépense_alimentation3851129[[#Totals],[Somme]],Dépense_animaux3952130[[#Totals],[Somme]],Dépense_transport4053131[[#Totals],[Somme]],Dépense_soins_personnels4154132[[#Totals],[Somme]],Dépense_loisirs4255133[[#Totals],[Somme]],Dépense_epargne_investissement4356134[[#Totals],[Somme]],Dépense_juridique4457135[[#Totals],[Somme]])) -> 8452.5
B28: LISTE DES DEPENSES
B30: Alimentation | F30: Animaux | J30: Transport | N30: Soins / personnels | R30: Loisirs | V30: Epargne/investissement | Z30: Juridique
B32: Type | C32: Date | D32: Somme | F32: Type | G32: Date | H32: Somme | J32: Type | K32: Date | L32: Somme | N32: Type | O32: Date | P32: Somme | R32: Type | S32: Date | T32: Somme | V32: Type | W32: Date | X32: Somme | Z32: Type | AA32: Date | AB32: Somme
D33: 0 | H33: 0 | L33: 0 | P33: 0 | T33: 0 | X33: 0 | AB33: 0
D34: 0 | H34: 0 | L34: 0 | P34: 0 | T34: 0 | X34: 0 | AB34: 0
D35: 0 | H35: 0 | L35: 0 | P35: 0 | T35: 0 | X35: 0 | AB35: 0
D36: 0 | H36: 0 | L36: 0 | P36: 0 | T36: 0 | X36: 0 | AB36: 0
D37: 0 | H37: 0 | L37: 0 | P37: 0 | T37: 0 | X37: 0 | AB37: 0
D38: 0 | H38: 0 | L38: 0 | P38: 0 | T38: 0 | X38: 0 | AB38: 0
D39: 0 | H39: 0 | L39: 0 | P39: 0 | T39: 0 | X39: 0 | AB39: 0
D40: 0 | H40: 0 | L40: 0 | P40: 0 | T40: 0 | X40: 0 | AB40: 0
D41: 0 | H41: 0 | L41: 0 | P41: 0 | T41: 0 | X41: 0 | AB41: 0
D42: 0 | H42: 0 | L42: 0 | P42: 0 | T42: 0 | X42: 0 | AB42: 0
D43: 0 | H43: 0 | L43: 0 | P43: 0 | T43: 0 | X43: 0 | AB43: 0
D44: 0 | H44: 0 | L44: 0 | P44: 0 | T44: 0 | X44: 0 | AB44: 0
D45: 0 | H45: 0 | L45: 0 | P45: 0 | T45: 0 | X45: 0 | AB45: 0
D46: 0 | H46: 0 | L46: 0 | P46: 0 | T46: 0 | X46: 0 | AB46: 0
D47: 0 | H47: 0 | L47: 0 | P47: 0 | T47: 0 | X47: 0 | AB47: 0
D48: 0 | H48: 0 | L48: 0 | P48: 0 | T48: 0 | X48: 0 | AB48: 0
D49: 0 | H49: 0 | L49: 0 | P49: 0 | T49: 0 | X49: 0 | AB49: 0
D50: 0 | H50: 0 | L50: 0 | P50: 0 | T50: 0 | X50: 0 | AB50: 0
D51: 0 | H51: 0 | L51: 0 | P51: 0 | T51: 0 | X51: 0 | AB51: 0
D52: 0 | H52: 0 | L52: 0 | P52: 0 | T52: 0 | X52: 0 | AB52: 0
D53: 0 | H53: 0 | L53: 0 | P53: 0 | T53: 0 | X53: 0 | AB53: 0
D54: 0 | H54: 0 | L54: 0 | P54: 0 | T54: 0 | X54: 0 | AB54: 0
D55: 0 | H55: 0 | L55: 0 | P55: 0 | T55: 0 | X55: 0 | AB55: 0
D56: 0 | H56: 0 | L56: 0 | P56: 0 | T56: 0 | X56: 0 | AB56: 0
D57: 0 | H57: 0 | L57: 0 | P57: 0 | T57: 0 | X57: 0 | AB57: 0
D58: 0 | H58: 0 | L58: 0 | P58: 0 | T58: 0 | X58: 0 | AB58: 0
D59: 0 | H59: 0 | L59: 0 | P59: 0 | T59: 0 | X59: 0 | AB59: 0
D60: 0 | H60: 0 | L60: 0 | P60: 0 | T60: 0 | X60: 0 | AB60: 0
D61: 0 | H61: 0 | L61: 0 | P61: 0 | T61: 0 | X61: 0 | AB61: 0
B62: Total | D62: =SUBTOTAL(109,Dépense_alimentation3851129[Somme]) -> 0 | F62: Total | H62: =SUBTOTAL(109,Dépense_animaux3952130[Somme]) -> 0 | J62: Total | L62: =SUBTOTAL(109,Dépense_transport4053131[Somme]) -> 0 | N62: Total | P62: =SUBTOTAL(109,Dépense_soins_personnels4154132[Somme]) -> 0 | R62: Total | T62: =SUBTOTAL(109,Dépense_loisirs4255133[Somme]) -> 0 | V62: Total | X62: =SUBTOTAL(109,Dépense_epargne_investissement4356134[Somme]) -> 0 | Z62: Total | AB62: =SUBTOTAL(109,Dépense_juridique4457135[Somme]) -> 0

Sheet Oct. (hidden)
B2: CREDIT | J2: DEBITS MENSUEL
B4: Revenu | F4: Reste à vivre | J4: Logement | N4: Assurance | R4: Emprunt | V4: Impôt
B6: Revenu mensuel | D6: 1000 | F6: Restant après débit mensuel | H6: =Revenu3245136[[#Totals],[Colonne2]]-(SUM(Logement3346137[[#Totals],[Colonne2]],Assurance3447138[[#Totals],[Colonne2]],Emprunt3548139[[#Totals],[Colonne2]],Impôts3649140[[#Totals],[Colonne2]])) -> 9452.5 | J6: Emprunt ou loyer N°1 | L6: 0 | N6: Maison | P6: 0 | R6: Personnels | T6: 0 | V6: Locaux | X6: 0
B7: Restant mois précédent | D7: =Sept.!F24 -> 8452.5 | F7: Frais annuel assurance voiture | H7: 0 | J7: Emprunt ou loyer N°2 | L7: 0 | N7: Santé | P7: 0 | R7: Étudiants | T7: 0 | V7: Foncier | X7: 0
B8: Remboursement frais bancaire | D8: 0 | F8: Frais annuel assurance vie | H8: 0 | J8: Téléphone | L8: 0 | N8: Vie | P8: 0 | R8: Carte de crédit | T8: 0 | V8: Habitation | X8: 0
B9: Autres revenus | D9: 0 | F9: Frais annuel assurance maison | H9: 0 | J9: Électricité | L9: 0 | N9: Mutuelle | P9: 0 | R9: Carte de crédit | T9: 0 | V9: Autre | X9: 0
B10: Autres revenus | D10: 0 | F10: Abonnement annuel Amazon | H10: 0 | J10: Gaz | L10: 0 | N10: Voiture | P10: 0 | R10: Carte de crédit | T10: 0 | V10: Autre | X10: 0
B11: Autres revenus | D11: 0 | F11: Autre | H11: 0 | J11: Eau | L11: 0 | N11: Autre | P11: 0 | R11: Autre | T11: 0 | V11: Autre | X11: 0
B12: Autres revenus | D12: 0 | F12: Autre | H12: 0 | J12: Internet | L12: 0 | N12: Autre | P12: 0 | R12: Autre | T12: 0 | V12: Autre | X12: 0
B13: Autres revenus | D13: 0 | F13: Autre | H13: 0 | J13: Ordures ménagères | L13: 0 | N13: Autre | P13: 0 | R13: Autre | T13: 0 | V13: Autre | X13: 0
B14: Total | D14: =SUBTOTAL(109,Revenu3245136[Colonne2]) -> 9452.5 | F14: Autre | H14: 0 | J14: Entretien ou réparations | L14: 0 | N14: Autre | P14: 0 | R14: Autre | T14: 0 | V14: Total | X14: =SUBTOTAL(109,Impôts3649140[Colonne2]) -> 0
F15: Autre | H15: 0 | J15: Copropriété | L15: 0 | N15: Autre | P15: 0 | R15: Autre | T15: 0
F16: Total | H16: =SUBTOTAL(109,Reste_à_vivre3750141[Colonne2]) -> 9452.5 | J16: Autre | L16: 0 | N16: Total | P16: =SUBTOTAL(109,Assurance3447138[Colonne2]) -> 0 | R16: Total | T16: =SUBTOTAL(109,Emprunt3548139[Colonne2]) -> 0
J17: Autre | L17: 0
J18: Autre | L18: 0
J19: Autre | L19: 0
J20: Autre | L20: 0
J21: Total | L21: =SUBTOTAL(109,Logement3346137[Colonne2]) -> 0
B24: Restant total | F24: =Reste_à_vivre3750141[[#Totals],[Colonne2]]-(SUM(Dépense_alimentation3851142[[#Totals],[Somme]],Dépense_animaux3952143[[#Totals],[Somme]],Dépense_transport4053144[[#Totals],[Somme]],Dépense_soins_personnels4154145[[#Totals],[Somme]],Dépense_loisirs4255146[[#Totals],[Somme]],Dépense_epargne_investissement4356147[[#Totals],[Somme]],Dépense_juridique4457148[[#Totals],[Somme]])) -> 9452.5
B28: LISTE DES DEPENSES
B30: Alimentation | F30: Animaux | J30: Transport | N30: Soins / personnels | R30: Loisirs | V30: Epargne/investissement | Z30: Juridique
B32: Type | C32: Date | D32: Somme | F32: Type | G32: Date | H32: Somme | J32: Type | K32: Date | L32: Somme | N32: Type | O32: Date | P32: Somme | R32: Type | S32: Date | T32: Somme | V32: Type | W32: Date | X32: Somme | Z32: Type | AA32: Date | AB32: Somme
D33: 0 | H33: 0 | L33: 0 | P33: 0 | T33: 0 | X33: 0 | AB33: 0
D34: 0 | H34: 0 | L34: 0 | P34: 0 | T34: 0 | X34: 0 | AB34: 0
D35: 0 | H35: 0 | L35: 0 | P35: 0 | T35: 0 | X35: 0 | AB35: 0
D36: 0 | H36: 0 | L36: 0 | P36: 0 | T36: 0 | X36: 0 | AB36: 0
D37: 0 | H37: 0 | L37: 0 | P37: 0 | T37: 0 | X37: 0 | AB37: 0
D38: 0 | H38: 0 | L38: 0 | P38: 0 | T38: 0 | X38: 0 | AB38: 0
D39: 0 | H39: 0 | L39: 0 | P39: 0 | T39: 0 | X39: 0 | AB39: 0
D40: 0 | H40: 0 | L40: 0 | P40: 0 | T40: 0 | X40: 0 | AB40: 0
D41: 0 | H41: 0 | L41: 0 | P41: 0 | T41: 0 | X41: 0 | AB41: 0
D42: 0 | H42: 0 | L42: 0 | P42: 0 | T42: 0 | X42: 0 | AB42: 0
D43: 0 | H43: 0 | L43: 0 | P43: 0 | T43: 0 | X43: 0 | AB43: 0
D44: 0 | H44: 0 | L44: 0 | P44: 0 | T44: 0 | X44: 0 | AB44: 0
D45: 0 | H45: 0 | L45: 0 | P45: 0 | T45: 0 | X45: 0 | AB45: 0
D46: 0 | H46: 0 | L46: 0 | P46: 0 | T46: 0 | X46: 0 | AB46: 0
D47: 0 | H47: 0 | L47: 0 | P47: 0 | T47: 0 | X47: 0 | AB47: 0
D48: 0 | H48: 0 | L48: 0 | P48: 0 | T48: 0 | X48: 0 | AB48: 0
D49: 0 | H49: 0 | L49: 0 | P49: 0 | T49: 0 | X49: 0 | AB49: 0
D50: 0 | H50: 0 | L50: 0 | P50: 0 | T50: 0 | X50: 0 | AB50: 0
D51: 0 | H51: 0 | L51: 0 | P51: 0 | T51: 0 | X51: 0 | AB51: 0
D52: 0 | H52: 0 | L52: 0 | P52: 0 | T52: 0 | X52: 0 | AB52: 0
D53: 0 | H53: 0 | L53: 0 | P53: 0 | T53: 0 | X53: 0 | AB53: 0
D54: 0 | H54: 0 | L54: 0 | P54: 0 | T54: 0 | X54: 0 | AB54: 0
D55: 0 | H55: 0 | L55: 0 | P55: 0 | T55: 0 | X55: 0 | AB55: 0
D56: 0 | H56: 0 | L56: 0 | P56: 0 | T56: 0 | X56: 0 | AB56: 0
D57: 0 | H57: 0 | L57: 0 | P57: 0 | T57: 0 | X57: 0 | AB57: 0
D58: 0 | H58: 0 | L58: 0 | P58: 0 | T58: 0 | X58: 0 | AB58: 0
D59: 0 | H59: 0 | L59: 0 | P59: 0 | T59: 0 | X59: 0 | AB59: 0
D60: 0 | H60: 0 | L60: 0 | P60: 0 | T60: 0 | X60: 0 | AB60: 0
D61: 0 | H61: 0 | L61: 0 | P61: 0 | T61: 0 | X61: 0 | AB61: 0
B62: Total | D62: =SUBTOTAL(109,Dépense_alimentation3851142[Somme]) -> 0 | F62: Total | H62: =SUBTOTAL(109,Dépense_animaux3952143[Somme]) -> 0 | J62: Total | L62: =SUBTOTAL(109,Dépense_transport4053144[Somme]) -> 0 | N62: Total | P62: =SUBTOTAL(109,Dépense_soins_personnels4154145[Somme]) -> 0 | R62: Total | T62: =SUBTOTAL(109,Dépense_loisirs4255146[Somme]) -> 0 | V62: Total | X62: =SUBTOTAL(109,Dépense_epargne_investissement4356147[Somme]) -> 0 | Z62: Total | AB62: =SUBTOTAL(109,Dépense_juridique4457148[Somme]) -> 0

Sheet Nov. (hidden)
B2: CREDIT | J2: DEBITS MENSUEL
B4: Revenu | F4: Reste à vivre | J4: Logement | N4: Assurance | R4: Emprunt | V4: Impôt
B6: Revenu mensuel | D6: 1000 | F6: Restant après débit mensuel | H6: =Revenu3245149[[#Totals],[Colonne2]]-(SUM(Logement3346150[[#Totals],[Colonne2]],Assurance3447151[[#Totals],[Colonne2]],Emprunt3548152[[#Totals],[Colonne2]],Impôts3649153[[#Totals],[Colonne2]])) -> 10452.5 | J6: Emprunt ou loyer N°1 | L6: 0 | N6: Maison | P6: 0 | R6: Personnels | T6: 0 | V6: Locaux | X6: 0
B7: Restant mois précédent | D7: =Oct.!F24 -> 9452.5 | F7: Frais annuel assurance voiture | H7: 0 | J7: Emprunt ou loyer N°2 | L7: 0 | N7: Santé | P7: 0 | R7: Étudiants | T7: 0 | V7: Foncier | X7: 0
B8: Remboursement frais bancaire | D8: 0 | F8: Frais annuel assurance vie | H8: 0 | J8: Téléphone | L8: 0 | N8: Vie | P8: 0 | R8: Carte de crédit | T8: 0 | V8: Habitation | X8: 0
B9: Autres revenus | D9: 0 | F9: Frais annuel assurance maison | H9: 0 | J9: Électricité | L9: 0 | N9: Mutuelle | P9: 0 | R9: Carte de crédit | T9: 0 | V9: Autre | X9: 0
B10: Autres revenus | D10: 0 | F10: Abonnement annuel Amazon | H10: 0 | J10: Gaz | L10: 0 | N10: Voiture | P10: 0 | R10: Carte de crédit | T10: 0 | V10: Autre | X10: 0
B11: Autres revenus | D11: 0 | F11: Autre | H11: 0 | J11: Eau | L11: 0 | N11: Autre | P11: 0 | R11: Autre | T11: 0 | V11: Autre | X11: 0
B12: Autres revenus | D12: 0 | F12: Autre | H12: 0 | J12: Internet | L12: 0 | N12: Autre | P12: 0 | R12: Autre | T12: 0 | V12: Autre | X12: 0
B13: Autres revenus | D13: 0 | F13: Autre | H13: 0 | J13: Ordures ménagères | L13: 0 | N13: Autre | P13: 0 | R13: Autre | T13: 0 | V13: Autre | X13: 0
B14: Total | D14: =SUBTOTAL(109,Revenu3245149[Colonne2]) -> 10452.5 | F14: Autre | H14: 0 | J14: Entretien ou réparations | L14: 0 | N14: Autre | P14: 0 | R14: Autre | T14: 0 | V14: Total | X14: =SUBTOTAL(109,Impôts3649153[Colonne2]) -> 0
F15: Autre | H15: 0 | J15: Copropriété | L15: 0 | N15: Autre | P15: 0 | R15: Autre | T15: 0
F16: Total | H16: =SUBTOTAL(109,Reste_à_vivre3750154[Colonne2]) -> 10452.5 | J16: Autre | L16: 0 | N16: Total | P16: =SUBTOTAL(109,Assurance3447151[Colonne2]) -> 0 | R16: Total | T16: =SUBTOTAL(109,Emprunt3548152[Colonne2]) -> 0
J17: Autre | L17: 0
J18: Autre | L18: 0
J19: Autre | L19: 0
J20: Autre | L20: 0
J21: Total | L21: =SUBTOTAL(109,Logement3346150[Colonne2]) -> 0
B24: Restant total | F24: =Reste_à_vivre3750154[[#Totals],[Colonne2]]-(SUM(Dépense_alimentation3851155[[#Totals],[Somme]],Dépense_animaux3952156[[#Totals],[Somme]],Dépense_transport4053157[[#Totals],[Somme]],Dépense_soins_personnels4154158[[#Totals],[Somme]],Dépense_loisirs4255159[[#Totals],[Somme]],Dépense_epargne_investissement4356160[[#Totals],[Somme]],Dépense_juridique4457161[[#Totals],[Somme]])) -> 10452.5
B28: LISTE DES DEPENSES
B30: Alimentation | F30: Animaux | J30: Transport | N30: Soins / personnels | R30: Loisirs | V30: Epargne/investissement | Z30: Juridique
B32: Type | C32: Date | D32: Somme | F32: Type | G32: Date | H32: Somme | J32: Type | K32: Date | L32: Somme | N32: Type | O32: Date | P32: Somme | R32: Type | S32: Date | T32: Somme | V32: Type | W32: Date | X32: Somme | Z32: Type | AA32: Date | AB32: Somme
D33: 0 | H33: 0 | L33: 0 | P33: 0 | T33: 0 | X33: 0 | AB33: 0
D34: 0 | H34: 0 | L34: 0 | P34: 0 | T34: 0 | X34: 0 | AB34: 0
D35: 0 | H35: 0 | L35: 0 | P35: 0 | T35: 0 | X35: 0 | AB35: 0
D36: 0 | H36: 0 | L36: 0 | P36: 0 | T36: 0 | X36: 0 | AB36: 0
D37: 0 | H37: 0 | L37: 0 | P37: 0 | T37: 0 | X37: 0 | AB37: 0
D38: 0 | H38: 0 | L38: 0 | P38: 0 | T38: 0 | X38: 0 | AB38: 0
D39: 0 | H39: 0 | L39: 0 | P39: 0 | T39: 0 | X39: 0 | AB39: 0
D40: 0 | H40: 0 | L40: 0 | P40: 0 | T40: 0 | X40: 0 | AB40: 0
D41: 0 | H41: 0 | L41: 0 | P41: 0 | T41: 0 | X41: 0 | AB41: 0
D42: 0 | H42: 0 | L42: 0 | P42: 0 | T42: 0 | X42: 0 | AB42: 0
D43: 0 | H43: 0 | L43: 0 | P43: 0 | T43: 0 | X43: 0 | AB43: 0
D44: 0 | H44: 0 | L44: 0 | P44: 0 | T44: 0 | X44: 0 | AB44: 0
D45: 0 | H45: 0 | L45: 0 | P45: 0 | T45: 0 | X45: 0 | AB45: 0
D46: 0 | H46: 0 | L46: 0 | P46: 0 | T46: 0 | X46: 0 | AB46: 0
D47: 0 | H47: 0 | L47: 0 | P47: 0 | T47: 0 | X47: 0 | AB47: 0
D48: 0 | H48: 0 | L48: 0 | P48: 0 | T48: 0 | X48: 0 | AB48: 0
D49: 0 | H49: 0 | L49: 0 | P49: 0 | T49: 0 | X49: 0 | AB49: 0
D50: 0 | H50: 0 | L50: 0 | P50: 0 | T50: 0 | X50: 0 | AB50: 0
D51: 0 | H51: 0 | L51: 0 | P51: 0 | T51: 0 | X51: 0 | AB51: 0
D52: 0 | H52: 0 | L52: 0 | P52: 0 | T52: 0 | X52: 0 | AB52: 0
D53: 0 | H53: 0 | L53: 0 | P53: 0 | T53: 0 | X53: 0 | AB53: 0
D54: 0 | H54: 0 | L54: 0 | P54: 0 | T54: 0 | X54: 0 | AB54: 0
D55: 0 | H55: 0 | L55: 0 | P55: 0 | T55: 0 | X55: 0 | AB55: 0
D56: 0 | H56: 0 | L56: 0 | P56: 0 | T56: 0 | X56: 0 | AB56: 0
D57: 0 | H57: 0 | L57: 0 | P57: 0 | T57: 0 | X57: 0 | AB57: 0
D58: 0 | H58: 0 | L58: 0 | P58: 0 | T58: 0 | X58: 0 | AB58: 0
D59: 0 | H59: 0 | L59: 0 | P59: 0 | T59: 0 | X59: 0 | AB59: 0
D60: 0 | H60: 0 | L60: 0 | P60: 0 | T60: 0 | X60: 0 | AB60: 0
D61: 0 | H61: 0 | L61: 0 | P61: 0 | T61: 0 | X61: 0 | AB61: 0
B62: Total | D62: =SUBTOTAL(109,Dépense_alimentation3851155[Somme]) -> 0 | F62: Total | H62: =SUBTOTAL(109,Dépense_animaux3952156[Somme]) -> 0 | J62: Total | L62: =SUBTOTAL(109,Dépense_transport4053157[Somme]) -> 0 | N62: Total | P62: =SUBTOTAL(109,Dépense_soins_personnels4154158[Somme]) -> 0 | R62: Total | T62: =SUBTOTAL(109,Dépense_loisirs4255159[Somme]) -> 0 | V62: Total | X62: =SUBTOTAL(109,Dépense_epargne_investissement4356160[Somme]) -> 0 | Z62: Total | AB62: =SUBTOTAL(109,Dépense_juridique4457161[Somme]) -> 0

Sheet Déc. (hidden)
B2: CREDIT | J2: DEBITS MENSUEL
B4: Revenu | F4: Reste à vivre | J4: Logement | N4: Assurance | R4: Emprunt | V4: Impôt
B6: Revenu mensuel | D6: 1000 | F6: Restant après débit mensuel | H6: =Revenu3245162[[#Totals],[Colonne2]]-(SUM(Logement3346163[[#Totals],[Colonne2]],Assurance3447164[[#Totals],[Colonne2]],Emprunt3548165[[#Totals],[Colonne2]],Impôts3649166[[#Totals],[Colonne2]])) -> 11452.5 | J6: Emprunt ou loyer N°1 | L6: 0 | N6: Maison | P6: 0 | R6: Personnels | T6: 0 | V6: Locaux | X6: 0
B7: Restant mois précédent | D7: =Nov.!F24 -> 10452.5 | F7: Frais annuel assurance voiture | H7: 0 | J7: Emprunt ou loyer N°2 | L7: 0 | N7: Santé | P7: 0 | R7: Étudiants | T7: 0 | V7: Foncier | X7: 0
B8: Remboursement frais bancaire | D8: 0 | F8: Frais annuel assurance vie | H8: 0 | J8: Téléphone | L8: 0 | N8: Vie | P8: 0 | R8: Carte de crédit | T8: 0 | V8: Habitation | X8: 0
B9: Autres revenus | D9: 0 | F9: Frais annuel assurance maison | H9: 0 | J9: Électricité | L9: 0 | N9: Mutuelle | P9: 0 | R9: Carte de crédit | T9: 0 | V9: Autre | X9: 0
B10: Autres revenus | D10: 0 | F10: Abonnement annuel Amazon | H10: 0 | J10: Gaz | L10: 0 | N10: Voiture | P10: 0 | R10: Carte de crédit | T10: 0 | V10: Autre | X10: 0
B11: Autres revenus | D11: 0 | F11: Autre | H11: 0 | J11: Eau | L11: 0 | N11: Autre | P11: 0 | R11: Autre | T11: 0 | V11: Autre | X11: 0
B12: Autres revenus | D12: 0 | F12: Autre | H12: 0 | J12: Internet | L12: 0 | N12: Autre | P12: 0 | R12: Autre | T12: 0 | V12: Autre | X12: 0
B13: Autres revenus | D13: 0 | F13: Autre | H13: 0 | J13: Ordures ménagères | L13: 0 | N13: Autre | P13: 0 | R13: Autre | T13: 0 | V13: Autre | X13: 0
B14: Total | D14: =SUBTOTAL(109,Revenu3245162[Colonne2]) -> 11452.5 | F14: Autre | H14: 0 | J14: Entretien ou réparations | L14: 0 | N14: Autre | P14: 0 | R14: Autre | T14: 0 | V14: Total | X14: =SUBTOTAL(109,Impôts3649166[Colonne2]) -> 0
F15: Autre | H15: 0 | J15: Copropriété | L15: 0 | N15: Autre | P15: 0 | R15: Autre | T15: 0
F16: Total | H16: =SUBTOTAL(109,Reste_à_vivre3750167[Colonne2]) -> 11452.5 | J16: Autre | L16: 0 | N16: Total | P16: =SUBTOTAL(109,Assurance3447164[Colonne2]) -> 0 | R16: Total | T16: =SUBTOTAL(109,Emprunt3548165[Colonne2]) -> 0
J17: Autre | L17: 0
J18: Autre | L18: 0
J19: Autre | L19: 0
J20: Autre | L20: 0
J21: Total | L21: =SUBTOTAL(109,Logement3346163[Colonne2]) -> 0
B24: Restant total | F24: =Reste_à_vivre3750167[[#Totals],[Colonne2]]-(SUM(Dépense_alimentation3851168[[#Totals],[Somme]],Dépense_animaux3952169[[#Totals],[Somme]],Dépense_transport4053170[[#Totals],[Somme]],Dépense_soins_personnels4154171[[#Totals],[Somme]],Dépense_loisirs4255172[[#Totals],[Somme]],Dépense_epargne_investissement4356173[[#Totals],[Somme]],Dépense_juridique4457174[[#Totals],[Somme]])) -> 11452.5
B28: LISTE DES DEPENSES
B30: Alimentation | F30: Animaux | J30: Transport | N30: Soins / personnels | R30: Loisirs | V30: Epargne/investissement | Z30: Juridique
B32: Type | C32: Date | D32: Somme | F32: Type | G32: Date | H32: Somme | J32: Type | K32: Date | L32: Somme | N32: Type | O32: Date | P32: Somme | R32: Type | S32: Date | T32: Somme | V32: Type | W32: Date | X32: Somme | Z32: Type | AA32: Date | AB32: Somme
D33: 0 | H33: 0 | L33: 0 | P33: 0 | T33: 0 | X33: 0 | AB33: 0
D34: 0 | H34: 0 | L34: 0 | P34: 0 | T34: 0 | X34: 0 | AB34: 0
D35: 0 | H35: 0 | L35: 0 | P35: 0 | T35: 0 | X35: 0 | AB35: 0
D36: 0 | H36: 0 | L36: 0 | P36: 0 | T36: 0 | X36: 0 | AB36: 0
D37: 0 | H37: 0 | L37: 0 | P37: 0 | T37: 0 | X37: 0 | AB37: 0
D38: 0 | H38: 0 | L38: 0 | P38: 0 | T38: 0 | X38: 0 | AB38: 0
D39: 0 | H39: 0 | L39: 0 | P39: 0 | T39: 0 | X39: 0 | AB39: 0
D40: 0 | H40: 0 | L40: 0 | P40: 0 | T40: 0 | X40: 0 | AB40: 0
D41: 0 | H41: 0 | L41: 0 | P41: 0 | T41: 0 | X41: 0 | AB41: 0
D42: 0 | H42: 0 | L42: 0 | P42: 0 | T42: 0 | X42: 0 | AB42: 0
D43: 0 | H43: 0 | L43: 0 | P43: 0 | T43: 0 | X43: 0 | AB43: 0
D44: 0 | H44: 0 | L44: 0 | P44: 0 | T44: 0 | X44: 0 | AB44: 0
D45: 0 | H45: 0 | L45: 0 | P45: 0 | T45: 0 | X45: 0 | AB45: 0
D46: 0 | H46: 0 | L46: 0 | P46: 0 | T46: 0 | X46: 0 | AB46: 0
D47: 0 | H47: 0 | L47: 0 | P47: 0 | T47: 0 | X47: 0 | AB47: 0
D48: 0 | H48: 0 | L48: 0 | P48: 0 | T48: 0 | X48: 0 | AB48: 0
D49: 0 | H49: 0 | L49: 0 | P49: 0 | T49: 0 | X49: 0 | AB49: 0
D50: 0 | H50: 0 | L50: 0 | P50: 0 | T50: 0 | X50: 0 | AB50: 0
D51: 0 | H51: 0 | L51: 0 | P51: 0 | T51: 0 | X51: 0 | AB51: 0
D52: 0 | H52: 0 | L52: 0 | P52: 0 | T52: 0 | X52: 0 | AB52: 0
D53: 0 | H53: 0 | L53: 0 | P53: 0 | T53: 0 | X53: 0 | AB53: 0
D54: 0 | H54: 0 | L54: 0 | P54: 0 | T54: 0 | X54: 0 | AB54: 0
D55: 0 | H55: 0 | L55: 0 | P55: 0 | T55: 0 | X55: 0 | AB55: 0
D56: 0 | H56: 0 | L56: 0 | P56: 0 | T56: 0 | X56: 0 | AB56: 0
D57: 0 | H57: 0 | L57: 0 | P57: 0 | T57: 0 | X57: 0 | AB57: 0
D58: 0 | H58: 0 | L58: 0 | P58: 0 | T58: 0 | X58: 0 | AB58: 0
D59: 0 | H59: 0 | L59: 0 | P59: 0 | T59: 0 | X59: 0 | AB59: 0
D60: 0 | H60: 0 | L60: 0 | P60: 0 | T60: 0 | X60: 0 | AB60: 0
D61: 0 | H61: 0 | L61: 0 | P61: 0 | T61: 0 | X61: 0 | AB61: 0
B62: Total | D62: =SUBTOTAL(109,Dépense_alimentation3851168[Somme]) -> 0 | F62: Total | H62: =SUBTOTAL(109,Dépense_animaux3952169[Somme]) -> 0 | J62: Total | L62: =SUBTOTAL(109,Dépense_transport4053170[Somme]) -> 0 | N62: Total | P62: =SUBTOTAL(109,Dépense_soins_personnels4154171[Somme]) -> 0 | R62: Total | T62: =SUBTOTAL(109,Dépense_loisirs4255172[Somme]) -> 0 | V62: Total | X62: =SUBTOTAL(109,Dépense_epargne_investissement4356173[Somme]) -> 0 | Z62: Total | AB62: =SUBTOTAL(109,Dépense_juridique4457174[Somme]) -> 0

Sheet Graphique (hidden)

Sheet Data
A1: Alimentation | B1: Animaux | C1: Transport | D1: Soins & personnels | E1: Loisirs | F1: Epargne/investissement | G1: Juridique
A3: Courses | B3: Alimentation | C3: Essence | D3: Frais médicaux | E3: Vidéo/DVD | F3: Compte d’épargne retraite | G3: Avocat
A4: Restaurant | B4: Vétérinaire | C4: Diesel | D4: Coiffeur/manucure | E4: CD | F4: Compte d’investissement | G4: Pension alimentaire
A5: Fast-food | B5: Toilettage | C5: GPL | D5: Habillement | E5: Cinéma | F5: Autre | G5: Paiements suite à un recours ou à un jugement
A6: Autre | B6: Jouets | C6: Autre | D6: Nettoyage à sec | E6: Concerts | G6: Autre
B7: Récréation | D7: Club de sport | E7: Événements sportifs
B8: Garde | D8: Cotisations ou frais d’inscription | E8: Théâtre
B9: Autre | D9: Boulangerie | E9: Autre
D10: Patisserie
D11: Autre
